{"text_format":"1","workbook":"xlsx","n_sheets":2,"sheets":["Детали","Вспомогательная"],"not_rendered":{"charts":0,"images":0,"macros":1,"external_links":0,"defined_names":12,"comments":0,"pivot_tables":0},"unopened":[],"bounds":{"document_bytes":16777216,"sheet_cells":100000,"rows_first":2000,"rows_last":500,"rows_between":2000,"halvings":0,"cell_chars":16384,"cell_head_chars":4096},"cells_cut":0,"cells_raw":0,"read":"whole","date_system":"1900"}

{"sheet":"Детали","index":0,"n_rows":264,"n_cols":17,"rows_kept":264,"cut":false,"hidden":false,"merged":[]}
[]
["Порядковый номер стж","Дата записи","ФИО НТП",null,null,"Склад назнач.",null,null,"Куратор (назнач.)","Подразделение (назнач.)",null,null,null,null,null,"Склад транзит.","Куратор транзит."]
[]
[null,"2014-09-11","Лапшина Александра Валерьевна",null,null,"Склад74",null,null,"куратор 4","Подразд.2",null,null,null,null,"Отгружено","Склад47",{"$error":"#N/A"}]
[null,"2014-09-11","Лбов Владимир Максимович",null,null,"Склад145",null,null,"куратор 2","Подразд.1",null,null,null,null,{"$error":"#N/A"},"Склад9",{"$error":"#N/A"}]
[null,"2014-09-11","Мебония Кирилл Геннадьевич",null,null,"Склад85",null,null,"куратор 5","Подразд.1",null,null,null,null,{"$error":"#N/A"},{"$error":"#N/A"},{"$error":"#N/A"}]
[null,"2014-09-11","Михалченкова Анастасия Юрьевна",null,null,"Склад43",null,null,"куратор 1","Подразд.2",null,null,null,null,{"$error":"#N/A"},"Склад43",{"$error":"#N/A"}]
[null,"2014-09-11","Павлюченкова Юлия Андреевна",null,null,"Склад102",null,null,"куратор 12","Подразд.2",null,null,null,null,"Отгружено","Склад176",{"$error":"#N/A"}]
[null,"2014-09-11","Пахомова Анна Алексеевна",null,null,"Склад42",null,null,"куратор 6","Подразд.2",null,null,null,null,{"$error":"#N/A"},"Склад46",{"$error":"#N/A"}]
[null,"2014-09-11","Рвачев Егор Николаевич",null,null,"Склад99",null,null,"куратор 12","Подразд.2",null,null,null,null,"Отгружено","Склад99",{"$error":"#N/A"}]
[null,"2014-09-11","Соланова Оксана Вячеславовна",null,null,"Склад66",null,null,"куратор 2","Подразд.1",null,null,null,null,{"$error":"#N/A"},"Склад66",{"$error":"#N/A"}]
[null,"2014-09-11","Федоров Антон Анатольевич",null,null,"Склад67",null,null,"куратор 7","Подразд.1",null,null,null,null,"Отгружено","Склад67",{"$error":"#N/A"}]
[null,"2014-09-16","Викулов Петр Сергеевич ",null,null,"Склад67",null,null,"куратор 7","Подразд.1",null,null,null,null,"Отгружено","Склад67",{"$error":"#N/A"}]
[null,"2014-09-16","Волков Дмитрий Григорьевич",null,null,"Склад43",null,null,"куратор 1","Подразд.2",null,null,null,null,{"$error":"#N/A"},"Склад43",{"$error":"#N/A"}]
[null,"2014-09-16","Громоклицкий Марк Александрович ",null,null,"Склад4",null,null,"куратор 1","Подразд.2",null,null,null,null,"Отгружено","Склад4",{"$error":"#N/A"}]
[null,"2014-09-16","Румянцева Ольга Владимировна ",null,null,"Склад146",null,null,"куратор 5","Подразд.1",null,null,null,null,{"$error":"#N/A"},"Склад107",{"$error":"#N/A"}]
[null,"2014-09-18","Автаев Виктор Александрович",null,null,"Склад99",null,null,"куратор 12","Подразд.2",null,null,null,null,{"$error":"#N/A"},"Склад99",{"$error":"#N/A"}]
[null,"2014-09-18","Антонова Екатерина Михайловна",null,null,"Склад142",null,null,"куратор 8","Подразд.2",null,null,null,null,{"$error":"#N/A"},"Склад73",{"$error":"#N/A"}]
[null,"2014-09-18","Березин Станислав Денисович",null,null,"Склад147",null,null,"куратор 12","Подразд.2",null,null,null,null,{"$error":"#N/A"},"Склад147",{"$error":"#N/A"}]
[null,"2014-09-18","Буданов Александр Владимирович",null,null,"Склад31",null,null,"куратор 11","Подразд.1",null,null,null,null,"Отгружено","Склад31",{"$error":"#N/A"}]
[null,"2014-09-18","Жук Александра Юрьевна",null,null,"Склад148",null,null,"куратор 8","Подразд.2",null,null,null,null,"Отгружено","Склад148",{"$error":"#N/A"}]
[null,"2014-09-18","Зотова Наталья Владимировна",null,null,"Склад20",null,null,"куратор 6","Подразд.2",null,null,null,null,"Отгружено","Склад20",{"$error":"#N/A"}]
[null,"2014-09-18","Мурзинов Денис Сергеевич",null,null,"Склад120",null,null,"куратор 8","Подразд.2",null,null,null,null,"Отгружено","Склад120",{"$error":"#N/A"}]
[null,"2014-09-18","Новоженин Александр Сергевич",null,null,"Склад99",null,null,"куратор 12","Подразд.2",null,null,null,null,"Отгружено","Склад99",{"$error":"#N/A"}]
[null,"2014-09-18","Онишко Анна Николаевна",null,null,"Склад67",null,null,"куратор 7","Подразд.1",null,null,null,null,"Отгружено","Склад67",{"$error":"#N/A"}]
[null,"2014-09-18","Панасюк Ирина Николаевна",null,null,"Склад148",null,null,"куратор 8","Подразд.2",null,null,null,null,{"$error":"#N/A"},"Склад148",{"$error":"#N/A"}]
[null,"2014-09-18","Пасохин Владислав Игоревич",null,null,"Склад117",null,null,"куратор 4","Подразд.2",null,null,null,null,{"$error":"#N/A"},"Склад117",{"$error":"#N/A"}]
[null,"2014-09-18","Пасхин Денис Игоревич",null,null,"Склад71",null,null,"куратор 7","Подразд.1",null,null,null,null,"Отгружено","Склад125",{"$error":"#N/A"}]
[null,"2014-09-18","Полиновская Кристина Александровна",null,null,"Склад147",null,null,"куратор 12","Подразд.2",null,null,null,null,{"$error":"#N/A"},"Склад147",{"$error":"#N/A"}]
[null,"2014-09-18","Рогачева Анастасия Князьевна",null,null,"Склад123",null,null,"куратор 2","Подразд.1",null,null,null,null,"Отгружено","Склад123",{"$error":"#N/A"}]
[null,"2014-09-18","Ситников Артемий Владимирович",null,null,"Склад125",null,null,"куратор 7","Подразд.1",null,null,null,null,"Отгружено","Склад125",{"$error":"#N/A"}]
[null,"2014-09-18","Шлаева Юлия Сергеевна",null,null,"Склад131",null,null,"куратор 10","Подразд.2",null,null,null,null,"Отгружено","Склад131",{"$error":"#N/A"}]
[null,"2014-09-23","Берлякова Наталья Валерьевна ",null,null,"Склад131",null,null,"куратор 10","Подразд.2",null,null,null,null,{"$error":"#N/A"},"Склад131",{"$error":"#N/A"}]
[null,"2014-09-23","Борисова Наталья Анатольевна ",null,null,"Склад23",null,null,"куратор 5","Подразд.1",null,null,null,null,"Отгружено","Склад133",{"$error":"#N/A"}]
[null,"2014-09-23","Енгалычев Артем Игоревич ",null,null,"Склад78",null,null,"куратор 2","Подразд.1",null,null,null,null,"Отгружено","Склад78",{"$error":"#N/A"}]
[null,"2014-09-23","Желтов Данил Дмитриевич ",null,null,"Склад31",null,null,"куратор 11","Подразд.1",null,null,null,null,{"$error":"#N/A"},"Склад31",{"$error":"#N/A"}]
[null,"2014-09-23","Замчалкин Денис Борисович ",null,null,"Склад148",null,null,"куратор 8","Подразд.2",null,null,null,null,"Отгружено","Склад148",{"$error":"#N/A"}]
[null,"2014-09-23","Кожина Ирина Викторовна ",null,null,"Склад149",null,null,"куратор 2","Подразд.1",null,null,null,null,"Отгружено","Склад97",{"$error":"#N/A"}]
[null,"2014-09-23","Котов Александр Васильевич ",null,null,"Склад42",null,null,"куратор 6","Подразд.2",null,null,null,null,{"$error":"#N/A"},"Склад46",{"$error":"#N/A"}]
[null,"2014-09-23","Ломанкин Никита Георгиевич ",null,null,"Склад5",null,null,"куратор 1","Подразд.2",null,null,null,null,{"$error":"#N/A"},"Склад5",{"$error":"#N/A"}]
[null,"2014-09-23","Лунькова Алина Александровна ",null,null,"Склад148",null,null,"куратор 8","Подразд.2",null,null,null,null,"Отгружено","Склад148",{"$error":"#N/A"}]
[null,"2014-09-23","Маннаников Дмитрий Александрович ",null,null,"Склад82",null,null,"куратор 6","Подразд.2",null,null,null,null,{"$error":"#N/A"},"Склад82",{"$error":"#N/A"}]
[null,"2014-09-23","Маньшина Юлия Андреевна ",null,null,"Склад150",null,null,"куратор 8","Подразд.2",null,null,null,null,"Отгружено","Склад73",{"$error":"#N/A"}]
[null,"2014-09-23","Нилова Дарья Сергеевна ",null,null,"Склад116",null,null,"куратор 2","Подразд.1",null,null,null,null,{"$error":"#N/A"},"Склад116",{"$error":"#N/A"}]
[null,"2014-09-23","Солоницын Любим Евгеньевич ",null,null,"Склад41",null,null,"куратор 1","Подразд.2",null,null,null,null,{"$error":"#N/A"},"Склад43",{"$error":"#N/A"}]
[null,"2014-09-23","Сухоногов Евгений Евгеньевич ",null,null,"Склад66",null,null,"куратор 2","Подразд.1",null,null,null,null,"Отгружено","Склад66",{"$error":"#N/A"}]
[null,"2014-09-23","Токарев Дмитрий Владимирович ",null,null,"Склад113",null,null,"куратор 12","Подразд.2",null,null,null,null,{"$error":"#N/A"},"Склад113",{"$error":"#N/A"}]
[null,"2014-09-23","Хара Анастасия Сергеевна ",null,null,"Склад7",null,null,"куратор 7","Подразд.1",null,null,null,null,{"$error":"#N/A"},"Склад86",{"$error":"#N/A"}]
[null,"2014-09-25","Анпилогов Александр Андреевич",null,null,"Склад43",null,null,"куратор 1","Подразд.2",null,null,null,null,{"$error":"#N/A"},"Склад43",{"$error":"#N/A"}]
[null,"2014-09-25","Вельдин Святослав Валерьевич",null,null,"Склад43",null,null,"куратор 1","Подразд.2",null,null,null,null,"Отгружено","Склад43",{"$error":"#N/A"}]
[null,"2014-09-25","Жимкова Ирина Витальевна",null,null,"Склад138",null,null,"куратор 12","Подразд.2",null,null,null,null,"Отгружено","Склад138",{"$error":"#N/A"}]
[null,"2014-09-25","Краснова Евгения Владимировна",null,null,"Склад149",null,null,"куратор 2","Подразд.1",null,null,null,null,"Отгружено","Склад97",{"$error":"#N/A"}]
[null,"2014-09-25","Левыкин Виктор Сергеевич",null,null,"Склад113",null,null,"куратор 12","Подразд.2",null,null,null,null,"Отгружено","Склад113",{"$error":"#N/A"}]
[null,"2014-09-25","Манченко Анна Алексеевна",null,null,"Склад47",null,null,"куратор 4","Подразд.2",null,null,null,null,{"$error":"#N/A"},"Склад47",{"$error":"#N/A"}]
[null,"2014-09-25","Муравьева Анастасия Алексеевна",null,null,"Склад81",null,null,"куратор 13","Подразд.1",null,null,null,null,"Отгружено","Склад81",{"$error":"#N/A"}]
[null,"2014-09-25","Ремизов Валерий Валерьевич",null,null,"Склад62",null,null,"куратор 4","Подразд.2",null,null,null,null,"Отгружено","Склад62",{"$error":"#N/A"}]
[null,"2014-09-25","Симонова Светлана Вячеславовна",null,null,"Склад149",null,null,"куратор 2","Подразд.1",null,null,null,null,"Отгружено","Склад97",{"$error":"#N/A"}]
[null,"2014-09-25","Сорокин Анатолий Анатольевич",null,null,"Склад125",null,null,"куратор 7","Подразд.1",null,null,null,null,{"$error":"#N/A"},"Склад125",{"$error":"#N/A"}]
[null,"2014-09-25","Усатюк Валерий Петрович",null,null,"Склад47",null,null,"куратор 4","Подразд.2",null,null,null,null,"Отгружено","Склад47",{"$error":"#N/A"}]
[null,"2014-09-30","Барбашова Анна Юрьевна",null,null,"Склад66",null,null,"куратор 2","Подразд.1",null,null,null,null,{"$error":"#N/A"},"Склад66",{"$error":"#N/A"}]
[null,"2014-09-30","Беликов Артем Александрович",null,null,"Склад86",null,null,"куратор 7","Подразд.1",null,null,null,null,"Отгружено","Склад7",{"$error":"#N/A"}]
[null,"2014-09-30","Бурушенков Дмитрий Владимирович ",null,null,"Склад146",null,null,"куратор 5","Подразд.1",null,null,null,null,{"$error":"#N/A"},"Склад107",{"$error":"#N/A"}]
[null,"2014-09-30","Кононов Евгений Вячеславович",null,null,"Склад113",null,null,"куратор 12","Подразд.2",null,null,null,null,"Отгружено","Склад113",{"$error":"#N/A"}]
[null,"2014-09-30","Лапшин Владимир Алексеевич",null,null,"Склад17",null,null,"куратор 7","Подразд.1",null,null,null,null,"Отгружено","Склад125",{"$error":"#N/A"}]
[null,"2014-09-30","Мотинева Маргарита Юрьевна",null,null,"Склад20",null,null,"куратор 6","Подразд.2",null,null,null,null,{"$error":"#N/A"},"Склад20",{"$error":"#N/A"}]
[null,"2014-09-30","Осипян Диана Романовна",null,null,"Склад42",null,null,"куратор 6","Подразд.2",null,null,null,null,{"$error":"#N/A"},"Склад46",{"$error":"#N/A"}]
[null,"2014-09-30","Привалова Мария Сергеевна",null,null,"Склад123",null,null,"куратор 2","Подразд.1",null,null,null,null,"Отгружено","Склад123",{"$error":"#N/A"}]
[null,"2014-09-30","Семахина Елена Владимировна",null,null,"Склад37",null,null,"куратор 11","Подразд.1",null,null,null,null,{"$error":"#N/A"},"Склад37",{"$error":"#N/A"}]
[null,"2014-09-30","Скотникова Кристина Геннадьевна",null,null,"Склад126",null,null,"куратор 12","Подразд.2",null,null,null,null,{"$error":"#N/A"},"Склад39",{"$error":"#N/A"}]
[null,"2014-09-30","Тарарушкин Владислав Сергеевич",null,null,"Склад146",null,null,"куратор 5","Подразд.1",null,null,null,null,"Отгружено","Склад107",{"$error":"#N/A"}]
[null,"2014-09-30","Ткачук Георгий Иванович",null,null,"Склад90",null,null,"куратор 13","Подразд.1",null,null,null,null,{"$error":"#N/A"},"Склад158",{"$error":"#N/A"}]
[null,"2014-09-30","Филиппов Евгений Сергеевич",null,null,"Склад136",null,null,"куратор 5","Подразд.1",null,null,null,null,"Отгружено","Склад133",{"$error":"#N/A"}]
[null,"2014-09-30","Финюков Евгений Сергеевич",null,null,"Склад117",null,null,"куратор 4","Подразд.2",null,null,null,null,{"$error":"#N/A"},"Склад117",{"$error":"#N/A"}]
[null,"2014-09-30","Шунин Никита Алексеевич",null,null,"Склад94",null,null,"куратор 8","Подразд.2",null,null,null,null,"Отгружено","Склад94",{"$error":"#N/A"}]
[null,"2014-10-02","Артамоновна Анжелика Владимировна ",null,null,"Склад40",null,null,"куратор 11","Подразд.1",null,null,null,null,"Отгружено","Склад40","куратор 11"]
[null,"2014-10-02","Бочкарев Андрей Викторович ",null,null,"Склад46",null,null,"куратор 6","Подразд.2",null,null,null,null,"Отгружено","Склад46","куратор 6"]
[null,"2014-10-02","Кордюков Денис Владимирович ",null,null,"Склад135",null,null,"куратор 12","Подразд.2",null,null,null,null,"Отгружено","Склад135","куратор 12"]
[null,"2014-10-02","Черкашина Елена Сергеевна ",null,null,"Склад85",null,null,"куратор 5","Подразд.1",null,null,null,null,"Отгружено",{"$error":"#N/A"},"куратор 5"]
[null,"2014-10-02","Ширматова Олеся Николаевна ",null,null,"Склад100",null,null,"куратор 10","Подразд.2",null,null,null,null,"Отгружено","Склад100","куратор 10"]
[null,"2014-10-07","Булычев Александр Викторович",null,null,"Склад142",null,null,"куратор 8","Подразд.2",null,null,null,null,"Отгружено","Склад73","куратор 8"]
[null,"2014-10-07","Капнинский Максим Александрович",null,null,"Склад123",null,null,"куратор 2","Подразд.1",null,null,null,null,"Отгружено","Склад123","куратор 2"]
[null,"2014-10-07","Карева Кристина Андреевна",null,null,"Склад148",null,null,"куратор 8","Подразд.2",null,null,null,null,"Отгружено","Склад148","куратор 8"]
[null,"2014-10-07","Латов Алексей Александрович",null,null,"Склад148",null,null,"куратор 8","Подразд.2",null,null,null,null,"Отгружено","Склад148","куратор 8"]
[null,"2014-10-07","Ломака Татьяна Андреевна",null,null,"Склад71",null,null,"куратор 7","Подразд.1",null,null,null,null,"Отгружено","Склад125","куратор 7"]
[null,"2014-10-07","Охапкина Анна Вячеславовна",null,null,"Склад73",null,null,"куратор 8","Подразд.2",null,null,null,null,"Отгружено","Склад73","куратор 8"]
[null,"2014-10-07","Савосткина Виктория Сергеевна",null,null,"Склад5",null,null,"куратор 1","Подразд.2",null,null,null,null,"Отгружено","Склад5","куратор 1"]
[null,"2014-10-07","Сакеев Вячеслав Сергеевич",null,null,"Склад3",null,null,"куратор 2","Подразд.1",null,null,null,null,"Отгружено","Склад3","куратор 2"]
[null,"2014-10-07","Сахарова Надежда Юрьевна",null,null,"Склад112",null,null,"куратор 12","Подразд.2",null,null,null,null,"Отгружено","Склад112","куратор 12"]
[null,"2014-10-07","Страдаева Ксения Валерьевна",null,null,"Склад86",null,null,"куратор 7","Подразд.1",null,null,null,null,"Отгружено","Склад7","куратор 7"]
[null,"2014-10-07","Телегин Дмитрий Алексеевич",null,null,"Склад105",null,null,"куратор 13","Подразд.1",null,null,null,null,"Отгружено","Склад158","куратор 13"]
[null,"2014-10-07","Шустиков Артем Анатолеьвич",null,null,"Склад138",null,null,"куратор 12","Подразд.2",null,null,null,null,"Отгружено","Склад138","куратор 12"]
[null,"2014-10-09","Абдулкадыров Ислам Абуевич ",null,null,"Склад31",null,null,"куратор 11","Подразд.1",null,null,null,null,"Отгружено","Склад31","куратор 11"]
[null,"2014-10-09","Василенко Виктория Михайловна ",null,null,"Склад142",null,null,"куратор 8","Подразд.2",null,null,null,null,"Отгружено","Склад73","куратор 8"]
[null,"2014-10-09","Достойнов Анатолий Моцианович",null,null,"Склад143",null,null,"куратор 8","Подразд.2",null,null,null,null,"Отгружено","Склад143","куратор 8"]
[null,"2014-10-09","Зотова Елизавета Андреевна ",null,null,"Склад31",null,null,"куратор 11","Подразд.1",null,null,null,null,"Отгружено","Склад31","куратор 11"]
[null,"2014-10-09","Колесник Алексей Васильевич ",null,null,"Склад99",null,null,"куратор 12","Подразд.2",null,null,null,null,"Отгружено","Склад99","куратор 12"]
[null,"2014-10-09","Кулысова Мария Николаевна ",null,null,"Склад145",null,null,"куратор 2","Подразд.1",null,null,null,null,"Отгружено","Склад145","куратор 2"]
[null,"2014-10-09","Рева Алексей Николаевич ",null,null,"Склад44",null,null,"куратор 2","Подразд.1",null,null,null,null,"Отгружено","Склад58","куратор 2"]
[null,"2014-10-09","Самохвалова Анастасия Викторовна",null,null,"Склад106",null,null,"куратор 13","Подразд.1",null,null,null,null,"Отгружено","Склад106","куратор 13"]
[null,"2014-10-14","Белоусов Илья Евгеньевич",null,null,"Склад80",null,null,"куратор 6","Подразд.2",null,null,null,null,"Отгружено","Склад80","куратор 6"]
[null,"2014-10-14","Беспалов Алексей ",null,null,"Склад40",null,null,"куратор 11","Подразд.1",null,null,null,null,"Отгружено","Склад40","куратор 11"]
[null,"2014-10-14","Бондаренко Виктор Васильевич",null,null,"Склад108",null,null,"куратор 11","Подразд.1",null,null,null,null,"Отгружено","Склад108","куратор 11"]
[null,"2014-10-14","Волков Вадим Николаевич",null,null,"Склад5",null,null,"куратор 1","Подразд.2",null,null,null,null,"Отгружено","Склад5","куратор 1"]
[null,"2014-10-14","Галицкий Максим  Андреевич",null,null,"Склад4",null,null,"куратор 1","Подразд.2",null,null,null,null,"Отгружено","Склад4","куратор 1"]
[null,"2014-10-14","Горелова Ольга Сергеевна",null,null,"Склад17",null,null,"куратор 7","Подразд.1",null,null,null,null,"Отгружено","Склад125","куратор 7"]
[null,"2014-10-14","Джумаев Денис Александрович",null,null,"Склад84",null,null,"куратор 1","Подразд.2",null,null,null,null,"Отгружено","Склад84","куратор 1"]
[null,"2014-10-14","Мазурина Надежда Никитина",null,null,"Склад3",null,null,"куратор 2","Подразд.1",null,null,null,null,"Отгружено","Склад3","куратор 2"]
[null,"2014-10-14","Михайлова Александра Ивановна",null,null,"Склад113",null,null,"куратор 12","Подразд.2",null,null,null,null,"Отгружено","Склад113","куратор 12"]
[null,"2014-10-14","Орехова Диана Валентиновна",null,null,"Склад138",null,null,"куратор 12","Подразд.2",null,null,null,null,"Отгружено","Склад138","куратор 12"]
[null,"2014-10-14","Петросян Левон Тигранович",null,null,"Склад25",null,null,"куратор 6","Подразд.2",null,null,null,null,"Отгружено","Склад25","куратор 6"]
[null,"2014-10-14","Шувалова Юлия Сергеевна",null,null,"Склад112",null,null,"куратор 12","Подразд.2",null,null,null,null,"Отгружено","Склад112","куратор 12"]
[null,"2014-10-16","Балауров Алексей Владимирович",null,null,"Склад67",null,null,"куратор 7","Подразд.1",null,null,null,null,"Отгружено","Склад67","куратор 7"]
[null,"2014-10-16","Лаврентьев Николай Николаевич",null,null,"Склад58",null,null,"куратор 2","Подразд.1",null,null,null,null,"Отгружено","Склад58","куратор 2"]
[null,"2014-10-16","Родионов Роман Вадимович",null,null,"Склад143",null,null,"куратор 8","Подразд.2",null,null,null,null,"Отгружено","Склад143","куратор 8"]
[null,"2014-10-16","Рохмачев Евгений Евгеньевич",null,null,"Склад151",null,null,"куратор 4","Подразд.2",null,null,null,null,"Отгружено","Склад117","куратор 4"]
[null,"2014-10-16","Сидоров Валерий Сергеевич",null,null,"Склад5",null,null,"куратор 1","Подразд.2",null,null,null,null,"Отгружено","Склад5","куратор 1"]
[null,"2014-10-21","Андрианов Руслан Николаевич",null,null,"Склад7",null,null,"куратор 7","Подразд.1",null,null,null,null,"Отгружено","Склад7","куратор 7"]
[null,"2014-10-21","Анохина Дарья Вячеславовна",null,null,"Склад52",null,null,"куратор 1","Подразд.2",null,null,null,null,"Отгружено","Склад52","куратор 1"]
[null,"2014-10-21","Арчакова Юлия Ивановна",null,null,"Склад100",null,null,"куратор 10","Подразд.2",null,null,null,null,"Отгружено","Склад100","куратор 10"]
[null,"2014-10-21","Борисенко Ольга Викторовна",null,null,"Склад9",null,null,"куратор 2","Подразд.1",null,null,null,null,"Отгружено","Склад9","куратор 2"]
[null,"2014-10-21","Бухтеев Сергей Вячеславович",null,null,"Склад7",null,null,"куратор 7","Подразд.1",null,null,null,null,"Отгружено","Склад7","куратор 7"]
[null,"2014-10-21","Васильев Олег Олегович",null,null,"Склад5",null,null,"куратор 1","Подразд.2",null,null,null,null,"Отгружено","Склад5","куратор 1"]
[null,"2014-10-21","Гречишкин Руслан Сергеевич",null,null,"Склад136",null,null,"куратор 5","Подразд.1",null,null,null,null,"Отгружено","Склад133","куратор 5"]
[null,"2014-10-21","Елисеенков Иван Сергеевич",null,null,"Склад77",null,null,"куратор 11","Подразд.1",null,null,null,null,"Отгружено","Склад77","куратор 11"]
[null,"2014-10-21","Инина Валентина Юрьевна",null,null,"Склад40",null,null,"куратор 11","Подразд.1",null,null,null,null,"Отгружено","Склад40","куратор 11"]
[null,"2014-10-21","Лыдина Анастасия Игоревна",null,null,"Склад83",null,null,"куратор 11","Подразд.1",null,null,null,null,"Отгружено","Склад83","куратор 11"]
[null,"2014-10-21","Негорожин Виктор Дмитриевич",null,null,"Склад58",null,null,"куратор 2","Подразд.1",null,null,null,null,"Отгружено","Склад58","куратор 2"]
[null,"2014-10-21","Султанова Судабе Алиагаева",null,null,"Склад87",null,null,"куратор 7","Подразд.1",null,null,null,null,"Отгружено","Склад125","куратор 7"]
[null,"2014-10-21","Тараненко Ксения Сергеевна",null,null,"Склад120",null,null,"куратор 8","Подразд.2",null,null,null,null,"Отгружено","Склад120","куратор 8"]
[null,"2014-10-21","Фетисова Надежда ",null,null,"Склад6",null,null,"куратор 1","Подразд.2",null,null,null,null,"Отгружено","Склад6","куратор 1"]
[null,"2014-10-21","Шарко Сергей Евгеньевич",null,null,"Склад107",null,null,"куратор 5","Подразд.1",null,null,null,null,"Отгружено","Склад107","куратор 5"]
[null,"2014-10-23","Акаимов Назим Набиюллаевич",null,null,"Склад122",null,null,"куратор 8","Подразд.2",null,null,null,null,"Отгружено","Склад122","куратор 8"]
[null,"2014-10-23","Валявский Валентин Олегович",null,null,"Склад152",null,null,"куратор 4","Подразд.2",null,null,null,null,"Отгружено","Склад1","куратор 4"]
[null,"2014-10-23","Гасанова Айгюль Вугаркызы",null,null,"Склад35",null,null,"куратор 11","Подразд.1",null,null,null,null,"Отгружено","Склад35","куратор 11"]
[null,"2014-10-23","Дец Артем Янович",null,null,"Склад17",null,null,"куратор 7","Подразд.1",null,null,null,null,"Отгружено","Склад125","куратор 7"]
[null,"2014-10-23","Зинина Анастасия Алексеевна",null,null,"Склад116",null,null,"куратор 2","Подразд.1",null,null,null,null,"Отгружено","Склад116","куратор 2"]
[null,"2014-10-23","Калоев Алибек Казбекович",null,null,"Склад153",null,null,"куратор 11","Подразд.1",null,null,null,null,"Отгружено","Склад153","куратор 11"]
[null,"2014-10-23","Коршунов Дмитрий Викторович",null,null,"Склад31",null,null,"куратор 11","Подразд.1",null,null,null,null,"Отгружено","Склад31","куратор 11"]
[null,"2014-10-23","Марценко Ксения Вадимовна",null,null,"Склад6",null,null,"куратор 1","Подразд.2",null,null,null,null,"Отгружено","Склад6","куратор 1"]
[null,"2014-10-23","Николаев Денис Викторович",null,null,"Склад77",null,null,"куратор 11","Подразд.1",null,null,null,null,"Отгружено","Склад77","куратор 11"]
[null,"2014-10-23","Носов Илья Андреевич",null,null,"Склад149",null,null,"куратор 2","Подразд.1",null,null,null,null,"Отгружено","Склад97","куратор 2"]
[null,"2014-10-23","Панченко Игорь Владимирович",null,null,"Склад39",null,null,"куратор 12","Подразд.2",null,null,null,null,"Отгружено","Склад39","куратор 12"]
[null,"2014-10-23","Расстрелова Татьяна Вячеславовна",null,null,"Склад23",null,null,"куратор 5","Подразд.1",null,null,null,null,"Отгружено","Склад133","куратор 5"]
[null,"2014-10-23","Самсонов Александр Михайлович",null,null,"Склад105",null,null,"куратор 13","Подразд.1",null,null,null,null,"Отказ","Склад158","куратор 13"]
[null,"2014-10-28","Винокурова Наталья Сергеевна",null,null,"Склад133",null,null,"куратор 5","Подразд.1",null,null,null,null,"Отгружено","Склад133","куратор 5"]
[null,"2014-10-28","Журкова Мария Владимировна",null,null,"Склад150",null,null,"куратор 8","Подразд.2",null,null,null,null,"Отгружено","Склад73","куратор 8"]
[null,"2014-10-28","Зимоглядова Лидия Владимировна",null,null,"Склад97",null,null,"куратор 2","Подразд.1",null,null,null,null,"Отгружено","Склад140","куратор 2"]
[null,"2014-10-28","Леваньшина Анастасия Вячеславовна",null,null,"Склад113",null,null,"куратор 12","Подразд.2",null,null,null,null,"Отгружено","Склад113","куратор 12"]
[null,"2014-10-28","Леньшин Антон Олегович",null,null,"Склад23",null,null,"куратор 5","Подразд.1",null,null,null,null,"Отгружено","Склад133","куратор 5"]
[null,"2014-10-28","Майорская Анна Вячеславовна",null,null,"Склад149",null,null,"куратор 2","Подразд.1",null,null,null,null,"Отгружено","Склад145","куратор 2"]
[null,"2014-10-28","Сергеев Дмитрий Андреевич",null,null,"Склад109",null,null,"куратор 8","Подразд.2",null,null,null,null,"Отгружено","Склад109","куратор 8"]
[null,"2014-10-28","Суханов Сергей Юрьевич",null,null,"Склад123",null,null,"куратор 2","Подразд.1",null,null,null,null,"Отгружено","Склад123","куратор 2"]
[null,"2014-10-28","Шелемех Денис Михайлович",null,null,"Склад113",null,null,"куратор 12","Подразд.2",null,null,null,null,"Отгружено","Склад113","куратор 12"]
[null,"2014-10-28","Юхнович Станислав Евгеньевич",null,null,"Склад9",null,null,"куратор 2","Подразд.1",null,null,null,null,"Отгружено","Склад9","куратор 2"]
[null,"2014-10-30","Васильев Алексей Вячеславович",null,null,"Склад84",null,null,"куратор 1","Подразд.2",null,null,null,null,"Отгружено","Склад84","куратор 1"]
[null,"2014-10-30","Гальгова Александра Михайловна",null,null,"Склад127",null,null,"куратор 4","Подразд.2",null,null,null,null,"Отгружено","Склад47","куратор 4"]
[null,"2014-10-30","Джалилов Намик Тофикович",null,null,"Склад9",null,null,"куратор 2","Подразд.1",null,null,null,null,"Отгружено","Склад123","куратор 2"]
[null,"2014-10-30","Егоричев Виталий Сергеевич",null,null,"Склад153",null,null,"куратор 11","Подразд.1",null,null,null,null,"Отгружено","Склад153","куратор 11"]
[null,"2014-10-30","Егорченков Евгений Константинович",null,null,"Склад91",null,null,"куратор 5","Подразд.1",null,null,null,null,"Отгружено","Склад146","куратор 5"]
[null,"2014-10-30","Есипов Дмитрий Владимирович",null,null,"Склад133",null,null,"куратор 5","Подразд.1",null,null,null,null,"Отгружено","Склад133","куратор 5"]
[null,"2014-10-30","Иванова Наталья Сергеевна",null,null,"Склад145",null,null,"куратор 2","Подразд.1",null,null,null,null,"Отгружено","Склад145","куратор 2"]
[null,"2014-10-30","Куприкова Елена Эдуардовна",null,null,"Склад107",null,null,"куратор 5","Подразд.1",null,null,null,null,"Отгружено","Склад107","куратор 5"]
[null,"2014-10-30","Лобачев Дмитрий Андреевич",null,null,"Склад117",null,null,"куратор 4","Подразд.2",null,null,null,null,"Отгружено","Склад117","куратор 4"]
[null,"2014-10-30","Садиков Александр Илдарович",null,null,"Склад153",null,null,"куратор 11","Подразд.1",null,null,null,null,"Отгружено","Склад153","куратор 11"]
[null,"2014-10-30","Таштемиров Марлен Эдуардович",null,null,"Склад150",null,null,"куратор 8","Подразд.2",null,null,null,null,"Отказ","Склад73","куратор 8"]
[null,"2014-10-30","Тонких Валерий Сергеевич",null,null,"Склад91",null,null,"куратор 5","Подразд.1",null,null,null,null,"Отгружено","Склад107","куратор 5"]
[null,"2014-10-30","Тюрина Татьяна Викторовна",null,null,"Склад150",null,null,"куратор 8","Подразд.2",null,null,null,null,"Отказ","Склад73","куратор 8"]
[null,"2014-10-30","Чекаданов Николай Владимирович",null,null,"Склад9",null,null,"куратор 2","Подразд.1",null,null,null,null,"Отказ","Склад9","куратор 2"]
[null,"2014-10-30","Шандрин Леонид Андреевич",null,null,"Склад154",null,null,"куратор 8","Подразд.2",null,null,null,null,"Отгружено","Склад46","куратор 6"]
[null,"2014-11-06","Будкова Маргарита Алексеевна",null,null,"Склад26",null,null,"куратор 4","Подразд.2",null,null,null,null,"Подвис","Склад26","куратор 4"]
[null,"2014-11-06","Валеева Миляуша Ринатовна",null,null,"Склад25",null,null,"куратор 6","Подразд.2",null,null,null,null,"Отгружено","Склад25","куратор 6"]
[null,"2014-11-06","Ващенко Анна Витальевна",null,null,"Склад126",null,null,"куратор 12","Подразд.3",null,null,null,null,"Отгружено","Склад39","куратор 12"]
[null,"2014-11-06","Дзичковская Александра Вадимовна",null,null,"Склад146",null,null,"куратор 5","Подразд.2",null,null,null,null,"Отгружено","Склад146","куратор 5"]
[null,"2014-11-06","Жигалов Леонид Федорович ",null,null,"Склад133",null,null,"куратор 5","Подразд.2",null,null,null,null,"Отгружено","Склад133","куратор 5"]
[null,"2014-11-06","Иванов Артем Николаевич",null,null,"Склад153",null,null,"куратор 14","Подразд.1",null,null,null,null,"Отгружено","Склад153","куратор 14"]
[null,"2014-11-06","Карпенко Алексей Евгеньевич",null,null,"Склад155",null,null,"куратор 10","Подразд.3",null,null,null,null,"Подвис","Склад155","куратор 10"]
[null,"2014-11-06","Королева Татьяна Сергеевна",null,null,"Склад126",null,null,"куратор 12","Подразд.3",null,null,null,null,"Отгружено","Склад39","куратор 12"]
[null,"2014-11-06","Родин Александр Владимирович",null,null,"Склад9",null,null,"куратор 2","Подразд.1",null,null,null,null,"Подвис","Склад9","куратор 2"]
[null,"2014-11-06","Семин Леонид Федорович",null,null,"Склад107",null,null,"куратор 5","Подразд.2",null,null,null,null,"Отгружено","Склад107","куратор 5"]
[null,"2014-11-06","Травинская Ирина Александровна",null,null,"Склад156",null,null,"куратор 6","Подразд.2",null,null,null,null,"Отгружено","Склад20","куратор 6"]
[null,"2014-11-06","Тюлькин Александр Александрович",null,null,"Склад151",null,null,"куратор 4","Подразд.2",null,null,null,null,"Отгружено","Склад151","куратор 4"]
[null,"2014-11-11T19:57:59","Аракелов Моисей ",null,null,"Склад157",null,null,"куратор 4","Подразд.2",null,null,null,null,"Отгружено",{"$error":"#N/A"},"куратор 4"]
[null,"2014-11-11T19:57:59","Аршакян Артак Гагикович",null,null,"Склад23",null,null,"куратор 5","Подразд.1",null,null,null,null,"Отгружено","Склад133","куратор 5"]
[null,"2014-11-11T19:57:59","Будкова Маргарита Алексеевна",null,null,"Склад26",null,null,"куратор 4","Подразд.2",null,null,null,null,"Отгружено","Склад26","куратор 4"]
[null,"2014-11-11T19:57:59","Визитну Руслан Ильич",null,null,"Склад4",null,null,"куратор 11","Подразд.2",null,null,null,null,"Отгружено","Склад4","куратор 11"]
[null,"2014-11-11T19:57:59","Вольхина Виктория Николаевна ",null,null,"Склад40",null,null,"куратор 11","Подразд.1",null,null,null,null,"Отгружено","Склад40","куратор 11"]
[null,"2014-11-11T19:57:59","Глоткина Алена Олеговна ",null,null,"Склад140",null,null,"куратор 2","Подразд.1",null,null,null,null,"Отгружено","Склад140","куратор 2"]
[null,"2014-11-11T19:57:59","Игнатенко Тарас Алексеевич ",null,null,"Склад99",null,null,"куратор 12","Подразд.2",null,null,null,null,"Отгружено","Склад99","куратор 12"]
[null,"2014-11-11T19:57:59","Калганов Евгений Алексеевич",null,null,"Склад107",null,null,"куратор 5","Подразд.1",null,null,null,null,"Отгружено","Склад107","куратор 5"]
[null,"2014-11-11T19:57:59","Кулаев Сергей Алексеевич",null,null,"Склад23",null,null,"куратор 5","Подразд.1",null,null,null,null,"Отгружено","Склад133","куратор 5"]
[null,"2014-11-11T19:57:59","Макарова Светлана Александровна ",null,null,"Склад141",null,null,"куратор 10","Подразд.2",null,null,null,null,"Отгружено","Склад141","куратор 10"]
[null,"2014-11-11T19:57:59","Оганесян Жан Варгашакович ",null,null,"Склад146",null,null,"куратор 5","Подразд.1",null,null,null,null,"Отгружено","Склад107","куратор 5"]
[null,"2014-11-11T19:57:59","Пакусин Сергей Владимирович",null,null,"Склад94",null,null,"куратор 15","Подразд.2",null,null,null,null,"Отгружено","Склад94","куратор 15"]
[null,"2014-11-11T19:57:59","Поздеева Виктория Константиновна ",null,null,"Склад155",null,null,"куратор 10","Подразд.2",null,null,null,null,"Отгружено","Склад155","куратор 10"]
[null,"2014-11-11T19:57:59","Пушков Тимофей Максимович",null,null,"Склад82",null,null,"куратор 6","Подразд.2",null,null,null,null,"Отгружено","Склад82","куратор 6"]
[null,"2014-11-11T19:57:59","Рублев Андрей Александрович ",null,null,"Склад155",null,null,"куратор 10","Подразд.3",null,null,null,null,"Отгружено","Склад103","куратор 10"]
[null,"2014-11-11T19:57:59","Старшов Виктор Витальевич",null,null,"Склад107",null,null,"куратор 5","Подразд.1",null,null,null,null,"Отгружено","Склад107","куратор 5"]
[null,"2014-11-11T19:57:59","Улюмджиева Кермен Геннадьевна ",null,null,"Склад55",null,null,"куратор 16","Подразд.2",null,null,null,null,"Отгружено","Склад47","куратор 16"]
[null,"2014-11-11T19:57:59","Шанин Сергей Александрович ",null,null,"Склад46",null,null,"куратор 6","Подразд.2",null,null,null,null,"Отгружено","Склад46","куратор 6"]
[null,"2014-11-11T19:57:59","Яшев Владимир Федорович",null,null,"Склад23",null,null,"куратор 5","Подразд.1",null,null,null,null,"Отгружено","Склад133","куратор 5"]
[null,"2014-11-12","Зайтулаев Абдурахман Мухадинович",null,null,"Склад97",null,null,"куратор 2","Подразд.1",null,null,null,null,"Подвис","Склад97","куратор 2"]
[null,"2014-11-12","Иванов Анатолий Игоревич",null,null,"Склад84",null,null,"куратор 11","Подразд.2",null,null,null,null,"Отгружено","Склад84","куратор 11"]
[null,"2014-11-12","Сотников Иван Викторович",null,null,"Склад89",null,null,"куратор 5","Подразд.1",null,null,null,null,"Отгружено",{"$error":"#N/A"},"куратор 5"]
[null,"2014-11-12","Стопченко Алла Анатольевна",null,null,"Склад151",null,null,"куратор 4","Подразд.2",null,null,null,null,"Отгружено","Склад117","куратор 4"]
[null,"2014-11-12T21:09:17","Кудряшов Алексей Геннадьевич",null,null,"Склад145",null,null,{"$error":"#N/A"},"Подразд.1",null,null,null,null,"В процессе",{"$error":"#N/A"},{"$error":"#N/A"}]
[null,"2014-11-12T21:09:17","Милаков Иван Сергеевич",null,null,"Склад117",null,null,"куратор 4","Подразд.2",null,null,null,null,"Отгружено","Склад117","куратор 4"]
[null,"2014-11-12T21:09:17","Рожков Алексей Михайлович",null,null,"Склад133",null,null,"куратор 5","Подразд.1",null,null,null,null,"Отгружено","Склад133","куратор 5"]
[null,"2014-11-12T21:09:17","Харламова Ольга Владимировна",null,null,"Склад99",null,null,"куратор 12","Подразд.2",null,null,null,null,"Отгружено","Склад99","куратор 12"]
[null,"2014-11-13T18:12:30","Онофриенко Яна Владимировна",null,null,"Склад23",null,null,"куратор 5","Подразд.1",null,null,null,null,"Отгружено","Склад133","куратор 5"]
[null,"2014-11-17","Денищенко Ксения Олеговна",null,null,"Склад150",null,null,"куратор 15","Подразд.2",null,null,null,null,"Отгружено","Склад150","куратор 15"]
[null,"2014-11-17","Комарова Кристина Александровна",null,null,"Склад116",null,null,"куратор 2","Подразд.1",null,null,null,null,"Отгружено","Склад116","куратор 2"]
[null,"2014-11-17T17:10:41","Андреев Александр Игоревич",null,null,"Склад4",null,null,"куратор 11","Подразд.2",null,null,null,null,"Отгружено","Склад4","куратор 11"]
[null,"2014-11-17T17:10:41","Балаш Игорь Вячеславович",null,null,"Склад156",null,null,"куратор 6","Подразд.2",null,null,null,null,"В процессе","Склад20","куратор 6"]
[{"$f":"IF(OR(O214=\"Отгружено\",O214=\"Отказ\"),MAX($A$213:A213)+1,\"\")","v":""},"2014-11-17T17:10:41","Долгунова Алина Игоревна",null,null,"Склад158",null,null,"куратор 13","Подразд.1",null,null,null,null,"Подвис","Склад158","куратор 13"]
[{"$f":"IF(OR(O215=\"Отгружено\",O215=\"Отказ\"),MAX($A$213:A214)+1,\"\")","v":1},"2014-11-17T17:10:41","Дочкин Олег Сергеевич",null,null,"Склад118",null,null,"куратор 15","Подразд.3",null,null,null,null,"Отгружено","Склад118","куратор 15"]
[{"$f":"IF(OR(O216=\"Отгружено\",O216=\"Отказ\"),MAX($A$213:A215)+1,\"\")","v":""},"2014-11-17T17:10:41","Игнатьева Юлия Геннадьевна",null,null,"Склад140",null,null,"куратор 2","Подразд.1",null,null,null,null,"Подвис","Склад140","куратор 2"]
[{"$f":"IF(OR(O217=\"Отгружено\",O217=\"Отказ\"),MAX($A$213:A216)+1,\"\")","v":""},"2014-11-17T17:10:41","Карабанов Александр Дмитриевич",null,null,"Склад156",null,null,"куратор 6","Подразд.2",null,null,null,null,"Подвис","Склад20","куратор 6"]
[{"$f":"IF(OR(O218=\"Отгружено\",O218=\"Отказ\"),MAX($A$213:A217)+1,\"\")","v":2},"2014-11-17T17:10:41","Кочергина Юлия Михайловна",null,null,"Склад84",null,null,"куратор 11","Подразд.2",null,null,null,null,"Отгружено","Склад72","куратор 4"]
[{"$f":"IF(OR(O219=\"Отгружено\",O219=\"Отказ\"),MAX($A$213:A218)+1,\"\")","v":""},"2014-11-17T17:10:41","Лапыгин Александр Николаевич",null,null,"Склад35",null,null,"куратор 11","Подразд.2",null,null,null,null,"Подвис","Склад35","куратор 11"]
[{"$f":"IF(OR(O220=\"Отгружено\",O220=\"Отказ\"),MAX($A$213:A219)+1,\"\")","v":""},"2014-11-17T17:10:41","Мишина Софья Игоревна",null,null,"Склад116",null,null,"куратор 2","Подразд.1",null,null,null,null,"В процессе","Склад116","куратор 2"]
[{"$f":"IF(OR(O221=\"Отгружено\",O221=\"Отказ\"),MAX($A$213:A220)+1,\"\")","v":3},"2014-11-17T17:10:41","Морозова Дарья Анатольевна",null,null,"Склад85",null,null,"куратор 5","Подразд.2",null,null,null,null,"Отгружено",{"$error":"#N/A"},"куратор 5"]
[{"$f":"IF(OR(O222=\"Отгружено\",O222=\"Отказ\"),MAX($A$213:A221)+1,\"\")","v":""},"2014-11-17T17:10:41","Семенов Николай Александрович",null,null,"Склад117",null,null,"куратор 4","Подразд.2",null,null,null,null,"Подвис","Склад117","куратор 4"]
[{"$f":"IF(OR(O223=\"Отгружено\",O223=\"Отказ\"),MAX($A$213:A222)+1,\"\")","v":""},"2014-11-17T17:10:41","Шушура Карина Олеговна",null,null,"Склад117",null,null,"куратор 4","Подразд.2",null,null,null,null,"Подвис","Склад117","куратор 4"]
[{"$f":"IF(OR(O224=\"Отгружено\",O224=\"Отказ\"),MAX($A$213:A223)+1,\"\")","v":4},"2014-11-19T10:14:18","Коровина Мария Степановна",null,null,"Склад17",null,null,"куратор 7","Подразд.1",null,null,null,null,"Отгружено","Склад125","куратор 7"]
[{"$f":"IF(OR(O225=\"Отгружено\",O225=\"Отказ\"),MAX($A$213:A224)+1,\"\")","v":""},"2014-11-19T17:04:57","Амиралиев Анзор Физилахович",null,null,"Склад89",null,null,"куратор 5","Подразд.2",null,null,null,null,"Подвис",{"$error":"#N/A"},"куратор 5"]
[{"$f":"IF(OR(O226=\"Отгружено\",O226=\"Отказ\"),MAX($A$213:A225)+1,\"\")","v":5},"2014-11-19T17:04:57","Долгунова Алина Игоревна",null,null,"Склад158",null,null,"куратор 13","Подразд.1",null,null,null,null,"Отгружено","Склад158","куратор 13"]
[{"$f":"IF(OR(O227=\"Отгружено\",O227=\"Отказ\"),MAX($A$213:A226)+1,\"\")","v":6},"2014-11-19T17:04:57","Лавренович Артем Александрович",null,null,"Склад3",null,null,"куратор 2","Подразд.1",null,null,null,null,"Отгружено","Склад3","куратор 2"]
[{"$f":"IF(OR(O228=\"Отгружено\",O228=\"Отказ\"),MAX($A$213:A227)+1,\"\")","v":""},"2014-11-19T17:04:57","Лоскутов Виктор Сергеевич",null,null,"Склад89",null,null,"куратор 5","Подразд.2",null,null,null,null,"Подвис",{"$error":"#N/A"},"куратор 5"]
[{"$f":"IF(OR(O229=\"Отгружено\",O229=\"Отказ\"),MAX($A$213:A228)+1,\"\")","v":7},"2014-11-19T17:04:57","Лучников Александр Анатольевич",null,null,"Склад143",null,null,"куратор 15","Подразд.3",null,null,null,null,"Отгружено","Склад143","куратор 15"]
[{"$f":"IF(OR(O230=\"Отгружено\",O230=\"Отказ\"),MAX($A$213:A229)+1,\"\")","v":""},"2014-11-19T17:04:57","Ляшенко Олег Сергеевич",null,null,"Склад159",null,null,"куратор 15","Подразд.3",null,null,null,null,"Подвис","Склад159","куратор 15"]
[{"$f":"IF(OR(O231=\"Отгружено\",O231=\"Отказ\"),MAX($A$213:A230)+1,\"\")","v":8},"2014-11-19T17:04:57","Никифоров Дмитрий Игоревич",null,null,"Склад156",null,null,"куратор 6","Подразд.2",null,null,null,null,"Отгружено","Склад20","куратор 6"]
[{"$f":"IF(OR(O232=\"Отгружено\",O232=\"Отказ\"),MAX($A$213:A231)+1,\"\")","v":""},"2014-11-19T17:04:57","Рогожин Николай Александрович",null,null,"Склад105",null,null,"куратор 14","Подразд.1",null,null,null,null,"Подвис","Склад105","куратор 14"]
[{"$f":"IF(OR(O233=\"Отгружено\",O233=\"Отказ\"),MAX($A$213:A232)+1,\"\")","v":9},"2014-11-19T17:04:57","Самусенко Светлана Алексеевна",null,null,"Склад150",null,null,"куратор 15","Подразд.3",null,null,null,null,"Отказ","Склад73","куратор 15"]
[{"$f":"IF(OR(O234=\"Отгружено\",O234=\"Отказ\"),MAX($A$213:A233)+1,\"\")","v":10},"2014-11-19T17:04:57","Хотулев Андрей Анатольевич",null,null,"Склад150",null,null,"куратор 15","Подразд.3",null,null,null,null,"Отгружено","Склад73","куратор 15"]
[{"$f":"IF(OR(O235=\"Отгружено\",O235=\"Отказ\"),MAX($A$213:A234)+1,\"\")","v":11},"2014-11-20T14:32:06","Куценко Дмитрий Игоревич ",null,null,"Склад23",null,null,"куратор 5","Подразд.2",null,null,null,null,"Отгружено","Склад195","куратор 5"]
[{"$f":"IF(OR(O236=\"Отгружено\",O236=\"Отказ\"),MAX($A$213:A235)+1,\"\")","v":""},{"$f":"IF(C236>0,NOW(),\"\")","v":"2015-07-31T20:28:40.290"},"борпщлогнр",null,null,"Склад2",null,null,{"$f":"IF($C236=0,\"\",VLOOKUP(F236,Вспомогательная!$G$2:$I$1000,(COLUMN(Вспомогательная!$H$1)-COLUMN(Вспомогательная!$G$1)+1),FALSE))","v":"куратор 2"},{"$f":"IF($C236=0,\"\",VLOOKUP(I236,Вспомогательная!$A$2:$B$1000,(COLUMN(Вспомогательная!$B$1)-COLUMN(Вспомогательная!$A$1)+1),FALSE))","v":"Подразд.1"},null,null,null,null,null,{"$f":"IF(F236=0,\"\",IFERROR(VLOOKUP(F236,Вспомогательная!$L$2:$M$1000,(COLUMN(Вспомогательная!$M$1)+1-COLUMN(Вспомогательная!$L$1)),FALSE),F236))","v":"Склад2"},{"$f":"IF($C236=0,\"\",VLOOKUP(P236,Вспомогательная!$G$2:$I$1000,(COLUMN(Вспомогательная!$H$1)-COLUMN(Вспомогательная!$G$1)+1),FALSE))","v":"куратор 2"}]
[{"$f":"IF(OR(O237=\"Отгружено\",O237=\"Отказ\"),MAX($A$213:A236)+1,\"\")","v":""},{"$f":"IF(C237>0,NOW(),\"\")","v":""},null,null,null,null,null,null,{"$f":"IF($C237=0,\"\",VLOOKUP(F237,Вспомогательная!$G$2:$I$1000,(COLUMN(Вспомогательная!$H$1)-COLUMN(Вспомогательная!$G$1)+1),FALSE))","v":""},{"$f":"IF($C237=0,\"\",VLOOKUP(I237,Вспомогательная!$A$2:$B$1000,(COLUMN(Вспомогательная!$B$1)-COLUMN(Вспомогательная!$A$1)+1),FALSE))","v":""},null,null,null,null,null,{"$f":"IF(F237=0,\"\",IFERROR(VLOOKUP(F237,Вспомогательная!$L$2:$M$1000,(COLUMN(Вспомогательная!$M$1)+1-COLUMN(Вспомогательная!$L$1)),FALSE),F237))","v":""},{"$f":"IF($C237=0,\"\",VLOOKUP(P237,Вспомогательная!$G$2:$I$1000,(COLUMN(Вспомогательная!$H$1)-COLUMN(Вспомогательная!$G$1)+1),FALSE))","v":""}]
[{"$f":"IF(OR(O238=\"Отгружено\",O238=\"Отказ\"),MAX($A$213:A237)+1,\"\")","v":""},{"$f":"IF(C238>0,NOW(),\"\")","v":""},null,null,null,null,null,null,{"$f":"IF($C238=0,\"\",VLOOKUP(F238,Вспомогательная!$G$2:$I$1000,(COLUMN(Вспомогательная!$H$1)-COLUMN(Вспомогательная!$G$1)+1),FALSE))","v":""},{"$f":"IF($C238=0,\"\",VLOOKUP(I238,Вспомогательная!$A$2:$B$1000,(COLUMN(Вспомогательная!$B$1)-COLUMN(Вспомогательная!$A$1)+1),FALSE))","v":""},null,null,null,null,null,{"$f":"IF(F238=0,\"\",IFERROR(VLOOKUP(F238,Вспомогательная!$L$2:$M$1000,(COLUMN(Вспомогательная!$M$1)+1-COLUMN(Вспомогательная!$L$1)),FALSE),F238))","v":""},{"$f":"IF($C238=0,\"\",VLOOKUP(P238,Вспомогательная!$G$2:$I$1000,(COLUMN(Вспомогательная!$H$1)-COLUMN(Вспомогательная!$G$1)+1),FALSE))","v":""}]
[{"$f":"IF(OR(O239=\"Отгружено\",O239=\"Отказ\"),MAX($A$213:A238)+1,\"\")","v":""},"",null,null,null,null,null,null,{"$f":"IF($C239=0,\"\",VLOOKUP(F239,Вспомогательная!$G$2:$I$1000,(COLUMN(Вспомогательная!$H$1)-COLUMN(Вспомогательная!$G$1)+1),FALSE))","v":""},{"$f":"IF($C239=0,\"\",VLOOKUP(I239,Вспомогательная!$A$2:$B$1000,(COLUMN(Вспомогательная!$B$1)-COLUMN(Вспомогательная!$A$1)+1),FALSE))","v":""},null,null,null,null,null,{"$f":"IF(F239=0,\"\",IFERROR(VLOOKUP(F239,Вспомогательная!$L$2:$M$1000,(COLUMN(Вспомогательная!$M$1)+1-COLUMN(Вспомогательная!$L$1)),FALSE),F239))","v":""},{"$f":"IF($C239=0,\"\",VLOOKUP(P239,Вспомогательная!$G$2:$I$1000,(COLUMN(Вспомогательная!$H$1)-COLUMN(Вспомогательная!$G$1)+1),FALSE))","v":""}]
[{"$f":"IF(OR(O240=\"Отгружено\",O240=\"Отказ\"),MAX($A$213:A239)+1,\"\")","v":""},"",null,null,null,null,null,null,{"$f":"IF($C240=0,\"\",VLOOKUP(F240,Вспомогательная!$G$2:$I$1000,(COLUMN(Вспомогательная!$H$1)-COLUMN(Вспомогательная!$G$1)+1),FALSE))","v":""},{"$f":"IF($C240=0,\"\",VLOOKUP(I240,Вспомогательная!$A$2:$B$1000,(COLUMN(Вспомогательная!$B$1)-COLUMN(Вспомогательная!$A$1)+1),FALSE))","v":""},null,null,null,null,null,{"$f":"IF(F240=0,\"\",IFERROR(VLOOKUP(F240,Вспомогательная!$L$2:$M$1000,(COLUMN(Вспомогательная!$M$1)+1-COLUMN(Вспомогательная!$L$1)),FALSE),F240))","v":""},{"$f":"IF($C240=0,\"\",VLOOKUP(P240,Вспомогательная!$G$2:$I$1000,(COLUMN(Вспомогательная!$H$1)-COLUMN(Вспомогательная!$G$1)+1),FALSE))","v":""}]
[{"$f":"IF(OR(O241=\"Отгружено\",O241=\"Отказ\"),MAX($A$213:A240)+1,\"\")","v":""},"",null,null,null,null,null,null,{"$f":"IF($C241=0,\"\",VLOOKUP(F241,Вспомогательная!$G$2:$I$1000,(COLUMN(Вспомогательная!$H$1)-COLUMN(Вспомогательная!$G$1)+1),FALSE))","v":""},{"$f":"IF($C241=0,\"\",VLOOKUP(I241,Вспомогательная!$A$2:$B$1000,(COLUMN(Вспомогательная!$B$1)-COLUMN(Вспомогательная!$A$1)+1),FALSE))","v":""},null,null,null,null,null,{"$f":"IF(F241=0,\"\",IFERROR(VLOOKUP(F241,Вспомогательная!$L$2:$M$1000,(COLUMN(Вспомогательная!$M$1)+1-COLUMN(Вспомогательная!$L$1)),FALSE),F241))","v":""},{"$f":"IF($C241=0,\"\",VLOOKUP(P241,Вспомогательная!$G$2:$I$1000,(COLUMN(Вспомогательная!$H$1)-COLUMN(Вспомогательная!$G$1)+1),FALSE))","v":""}]
[{"$f":"IF(OR(O242=\"Отгружено\",O242=\"Отказ\"),MAX($A$213:A241)+1,\"\")","v":""},"",null,null,null,null,null,null,{"$f":"IF($C242=0,\"\",VLOOKUP(F242,Вспомогательная!$G$2:$I$1000,(COLUMN(Вспомогательная!$H$1)-COLUMN(Вспомогательная!$G$1)+1),FALSE))","v":""},{"$f":"IF($C242=0,\"\",VLOOKUP(I242,Вспомогательная!$A$2:$B$1000,(COLUMN(Вспомогательная!$B$1)-COLUMN(Вспомогательная!$A$1)+1),FALSE))","v":""},null,null,null,null,null,{"$f":"IF(F242=0,\"\",IFERROR(VLOOKUP(F242,Вспомогательная!$L$2:$M$1000,(COLUMN(Вспомогательная!$M$1)+1-COLUMN(Вспомогательная!$L$1)),FALSE),F242))","v":""},{"$f":"IF($C242=0,\"\",VLOOKUP(P242,Вспомогательная!$G$2:$I$1000,(COLUMN(Вспомогательная!$H$1)-COLUMN(Вспомогательная!$G$1)+1),FALSE))","v":""}]
[{"$f":"IF(OR(O243=\"Отгружено\",O243=\"Отказ\"),MAX($A$213:A242)+1,\"\")","v":""},"",null,null,null,null,null,null,{"$f":"IF($C243=0,\"\",VLOOKUP(F243,Вспомогательная!$G$2:$I$1000,(COLUMN(Вспомогательная!$H$1)-COLUMN(Вспомогательная!$G$1)+1),FALSE))","v":""},{"$f":"IF($C243=0,\"\",VLOOKUP(I243,Вспомогательная!$A$2:$B$1000,(COLUMN(Вспомогательная!$B$1)-COLUMN(Вспомогательная!$A$1)+1),FALSE))","v":""},null,null,null,null,null,{"$f":"IF(F243=0,\"\",IFERROR(VLOOKUP(F243,Вспомогательная!$L$2:$M$1000,(COLUMN(Вспомогательная!$M$1)+1-COLUMN(Вспомогательная!$L$1)),FALSE),F243))","v":""},{"$f":"IF($C243=0,\"\",VLOOKUP(P243,Вспомогательная!$G$2:$I$1000,(COLUMN(Вспомогательная!$H$1)-COLUMN(Вспомогательная!$G$1)+1),FALSE))","v":""}]
[{"$f":"IF(OR(O244=\"Отгружено\",O244=\"Отказ\"),MAX($A$213:A243)+1,\"\")","v":""},"",null,null,null,null,null,null,{"$f":"IF($C244=0,\"\",VLOOKUP(F244,Вспомогательная!$G$2:$I$1000,(COLUMN(Вспомогательная!$H$1)-COLUMN(Вспомогательная!$G$1)+1),FALSE))","v":""},{"$f":"IF($C244=0,\"\",VLOOKUP(I244,Вспомогательная!$A$2:$B$1000,(COLUMN(Вспомогательная!$B$1)-COLUMN(Вспомогательная!$A$1)+1),FALSE))","v":""},null,null,null,null,null,{"$f":"IF(F244=0,\"\",IFERROR(VLOOKUP(F244,Вспомогательная!$L$2:$M$1000,(COLUMN(Вспомогательная!$M$1)+1-COLUMN(Вспомогательная!$L$1)),FALSE),F244))","v":""},{"$f":"IF($C244=0,\"\",VLOOKUP(P244,Вспомогательная!$G$2:$I$1000,(COLUMN(Вспомогательная!$H$1)-COLUMN(Вспомогательная!$G$1)+1),FALSE))","v":""}]
[{"$f":"IF(OR(O245=\"Отгружено\",O245=\"Отказ\"),MAX($A$213:A244)+1,\"\")","v":""},"",null,null,null,null,null,null,{"$f":"IF($C245=0,\"\",VLOOKUP(F245,Вспомогательная!$G$2:$I$1000,(COLUMN(Вспомогательная!$H$1)-COLUMN(Вспомогательная!$G$1)+1),FALSE))","v":""},{"$f":"IF($C245=0,\"\",VLOOKUP(I245,Вспомогательная!$A$2:$B$1000,(COLUMN(Вспомогательная!$B$1)-COLUMN(Вспомогательная!$A$1)+1),FALSE))","v":""},null,null,null,null,null,{"$f":"IF(F245=0,\"\",IFERROR(VLOOKUP(F245,Вспомогательная!$L$2:$M$1000,(COLUMN(Вспомогательная!$M$1)+1-COLUMN(Вспомогательная!$L$1)),FALSE),F245))","v":""},{"$f":"IF($C245=0,\"\",VLOOKUP(P245,Вспомогательная!$G$2:$I$1000,(COLUMN(Вспомогательная!$H$1)-COLUMN(Вспомогательная!$G$1)+1),FALSE))","v":""}]
[{"$f":"IF(OR(O246=\"Отгружено\",O246=\"Отказ\"),MAX($A$213:A245)+1,\"\")","v":""},"",null,null,null,null,null,null,{"$f":"IF($C246=0,\"\",VLOOKUP(F246,Вспомогательная!$G$2:$I$1000,(COLUMN(Вспомогательная!$H$1)-COLUMN(Вспомогательная!$G$1)+1),FALSE))","v":""},{"$f":"IF($C246=0,\"\",VLOOKUP(I246,Вспомогательная!$A$2:$B$1000,(COLUMN(Вспомогательная!$B$1)-COLUMN(Вспомогательная!$A$1)+1),FALSE))","v":""},null,null,null,null,null,{"$f":"IF(F246=0,\"\",IFERROR(VLOOKUP(F246,Вспомогательная!$L$2:$M$1000,(COLUMN(Вспомогательная!$M$1)+1-COLUMN(Вспомогательная!$L$1)),FALSE),F246))","v":""},{"$f":"IF($C246=0,\"\",VLOOKUP(P246,Вспомогательная!$G$2:$I$1000,(COLUMN(Вспомогательная!$H$1)-COLUMN(Вспомогательная!$G$1)+1),FALSE))","v":""}]
[{"$f":"IF(OR(O247=\"Отгружено\",O247=\"Отказ\"),MAX($A$213:A246)+1,\"\")","v":""},"",null,null,null,null,null,null,{"$f":"IF($C247=0,\"\",VLOOKUP(F247,Вспомогательная!$G$2:$I$1000,(COLUMN(Вспомогательная!$H$1)-COLUMN(Вспомогательная!$G$1)+1),FALSE))","v":""},{"$f":"IF($C247=0,\"\",VLOOKUP(I247,Вспомогательная!$A$2:$B$1000,(COLUMN(Вспомогательная!$B$1)-COLUMN(Вспомогательная!$A$1)+1),FALSE))","v":""},null,null,null,null,null,{"$f":"IF(F247=0,\"\",IFERROR(VLOOKUP(F247,Вспомогательная!$L$2:$M$1000,(COLUMN(Вспомогательная!$M$1)+1-COLUMN(Вспомогательная!$L$1)),FALSE),F247))","v":""},{"$f":"IF($C247=0,\"\",VLOOKUP(P247,Вспомогательная!$G$2:$I$1000,(COLUMN(Вспомогательная!$H$1)-COLUMN(Вспомогательная!$G$1)+1),FALSE))","v":""}]
[{"$f":"IF(OR(O248=\"Отгружено\",O248=\"Отказ\"),MAX($A$213:A247)+1,\"\")","v":""},"",null,null,null,null,null,null,{"$f":"IF($C248=0,\"\",VLOOKUP(F248,Вспомогательная!$G$2:$I$1000,(COLUMN(Вспомогательная!$H$1)-COLUMN(Вспомогательная!$G$1)+1),FALSE))","v":""},{"$f":"IF($C248=0,\"\",VLOOKUP(I248,Вспомогательная!$A$2:$B$1000,(COLUMN(Вспомогательная!$B$1)-COLUMN(Вспомогательная!$A$1)+1),FALSE))","v":""},null,null,null,null,null,{"$f":"IF(F248=0,\"\",IFERROR(VLOOKUP(F248,Вспомогательная!$L$2:$M$1000,(COLUMN(Вспомогательная!$M$1)+1-COLUMN(Вспомогательная!$L$1)),FALSE),F248))","v":""},{"$f":"IF($C248=0,\"\",VLOOKUP(P248,Вспомогательная!$G$2:$I$1000,(COLUMN(Вспомогательная!$H$1)-COLUMN(Вспомогательная!$G$1)+1),FALSE))","v":""}]
[{"$f":"IF(OR(O249=\"Отгружено\",O249=\"Отказ\"),MAX($A$213:A248)+1,\"\")","v":""},"",null,null,null,null,null,null,{"$f":"IF($C249=0,\"\",VLOOKUP(F249,Вспомогательная!$G$2:$I$1000,(COLUMN(Вспомогательная!$H$1)-COLUMN(Вспомогательная!$G$1)+1),FALSE))","v":""},{"$f":"IF($C249=0,\"\",VLOOKUP(I249,Вспомогательная!$A$2:$B$1000,(COLUMN(Вспомогательная!$B$1)-COLUMN(Вспомогательная!$A$1)+1),FALSE))","v":""},null,null,null,null,null,{"$f":"IF(F249=0,\"\",IFERROR(VLOOKUP(F249,Вспомогательная!$L$2:$M$1000,(COLUMN(Вспомогательная!$M$1)+1-COLUMN(Вспомогательная!$L$1)),FALSE),F249))","v":""},{"$f":"IF($C249=0,\"\",VLOOKUP(P249,Вспомогательная!$G$2:$I$1000,(COLUMN(Вспомогательная!$H$1)-COLUMN(Вспомогательная!$G$1)+1),FALSE))","v":""}]
[{"$f":"IF(OR(O250=\"Отгружено\",O250=\"Отказ\"),MAX($A$213:A249)+1,\"\")","v":""},"",null,null,null,null,null,null,{"$f":"IF($C250=0,\"\",VLOOKUP(F250,Вспомогательная!$G$2:$I$1000,(COLUMN(Вспомогательная!$H$1)-COLUMN(Вспомогательная!$G$1)+1),FALSE))","v":""},{"$f":"IF($C250=0,\"\",VLOOKUP(I250,Вспомогательная!$A$2:$B$1000,(COLUMN(Вспомогательная!$B$1)-COLUMN(Вспомогательная!$A$1)+1),FALSE))","v":""},null,null,null,null,null,{"$f":"IF(F250=0,\"\",IFERROR(VLOOKUP(F250,Вспомогательная!$L$2:$M$1000,(COLUMN(Вспомогательная!$M$1)+1-COLUMN(Вспомогательная!$L$1)),FALSE),F250))","v":""},{"$f":"IF($C250=0,\"\",VLOOKUP(P250,Вспомогательная!$G$2:$I$1000,(COLUMN(Вспомогательная!$H$1)-COLUMN(Вспомогательная!$G$1)+1),FALSE))","v":""}]
[{"$f":"IF(OR(O251=\"Отгружено\",O251=\"Отказ\"),MAX($A$213:A250)+1,\"\")","v":""},"",null,null,null,null,null,null,{"$f":"IF($C251=0,\"\",VLOOKUP(F251,Вспомогательная!$G$2:$I$1000,(COLUMN(Вспомогательная!$H$1)-COLUMN(Вспомогательная!$G$1)+1),FALSE))","v":""},{"$f":"IF($C251=0,\"\",VLOOKUP(I251,Вспомогательная!$A$2:$B$1000,(COLUMN(Вспомогательная!$B$1)-COLUMN(Вспомогательная!$A$1)+1),FALSE))","v":""},null,null,null,null,null,{"$f":"IF(F251=0,\"\",IFERROR(VLOOKUP(F251,Вспомогательная!$L$2:$M$1000,(COLUMN(Вспомогательная!$M$1)+1-COLUMN(Вспомогательная!$L$1)),FALSE),F251))","v":""},{"$f":"IF($C251=0,\"\",VLOOKUP(P251,Вспомогательная!$G$2:$I$1000,(COLUMN(Вспомогательная!$H$1)-COLUMN(Вспомогательная!$G$1)+1),FALSE))","v":""}]
[{"$f":"IF(OR(O252=\"Отгружено\",O252=\"Отказ\"),MAX($A$213:A251)+1,\"\")","v":""},"",null,null,null,null,null,null,{"$f":"IF($C252=0,\"\",VLOOKUP(F252,Вспомогательная!$G$2:$I$1000,(COLUMN(Вспомогательная!$H$1)-COLUMN(Вспомогательная!$G$1)+1),FALSE))","v":""},{"$f":"IF($C252=0,\"\",VLOOKUP(I252,Вспомогательная!$A$2:$B$1000,(COLUMN(Вспомогательная!$B$1)-COLUMN(Вспомогательная!$A$1)+1),FALSE))","v":""},null,null,null,null,null,{"$f":"IF(F252=0,\"\",IFERROR(VLOOKUP(F252,Вспомогательная!$L$2:$M$1000,(COLUMN(Вспомогательная!$M$1)+1-COLUMN(Вспомогательная!$L$1)),FALSE),F252))","v":""},{"$f":"IF($C252=0,\"\",VLOOKUP(P252,Вспомогательная!$G$2:$I$1000,(COLUMN(Вспомогательная!$H$1)-COLUMN(Вспомогательная!$G$1)+1),FALSE))","v":""}]
[{"$f":"IF(OR(O253=\"Отгружено\",O253=\"Отказ\"),MAX($A$213:A252)+1,\"\")","v":""},"",null,null,null,null,null,null,{"$f":"IF($C253=0,\"\",VLOOKUP(F253,Вспомогательная!$G$2:$I$1000,(COLUMN(Вспомогательная!$H$1)-COLUMN(Вспомогательная!$G$1)+1),FALSE))","v":""},{"$f":"IF($C253=0,\"\",VLOOKUP(I253,Вспомогательная!$A$2:$B$1000,(COLUMN(Вспомогательная!$B$1)-COLUMN(Вспомогательная!$A$1)+1),FALSE))","v":""},null,null,null,null,null,{"$f":"IF(F253=0,\"\",IFERROR(VLOOKUP(F253,Вспомогательная!$L$2:$M$1000,(COLUMN(Вспомогательная!$M$1)+1-COLUMN(Вспомогательная!$L$1)),FALSE),F253))","v":""},{"$f":"IF($C253=0,\"\",VLOOKUP(P253,Вспомогательная!$G$2:$I$1000,(COLUMN(Вспомогательная!$H$1)-COLUMN(Вспомогательная!$G$1)+1),FALSE))","v":""}]
[{"$f":"IF(OR(O254=\"Отгружено\",O254=\"Отказ\"),MAX($A$213:A253)+1,\"\")","v":""},"",null,null,null,null,null,null,{"$f":"IF($C254=0,\"\",VLOOKUP(F254,Вспомогательная!$G$2:$I$1000,(COLUMN(Вспомогательная!$H$1)-COLUMN(Вспомогательная!$G$1)+1),FALSE))","v":""},{"$f":"IF($C254=0,\"\",VLOOKUP(I254,Вспомогательная!$A$2:$B$1000,(COLUMN(Вспомогательная!$B$1)-COLUMN(Вспомогательная!$A$1)+1),FALSE))","v":""},null,null,null,null,null,{"$f":"IF(F254=0,\"\",IFERROR(VLOOKUP(F254,Вспомогательная!$L$2:$M$1000,(COLUMN(Вспомогательная!$M$1)+1-COLUMN(Вспомогательная!$L$1)),FALSE),F254))","v":""},{"$f":"IF($C254=0,\"\",VLOOKUP(P254,Вспомогательная!$G$2:$I$1000,(COLUMN(Вспомогательная!$H$1)-COLUMN(Вспомогательная!$G$1)+1),FALSE))","v":""}]
[{"$f":"IF(OR(O255=\"Отгружено\",O255=\"Отказ\"),MAX($A$213:A254)+1,\"\")","v":""},"",null,null,null,null,null,null,{"$f":"IF($C255=0,\"\",VLOOKUP(F255,Вспомогательная!$G$2:$I$1000,(COLUMN(Вспомогательная!$H$1)-COLUMN(Вспомогательная!$G$1)+1),FALSE))","v":""},{"$f":"IF($C255=0,\"\",VLOOKUP(I255,Вспомогательная!$A$2:$B$1000,(COLUMN(Вспомогательная!$B$1)-COLUMN(Вспомогательная!$A$1)+1),FALSE))","v":""},null,null,null,null,null,{"$f":"IF(F255=0,\"\",IFERROR(VLOOKUP(F255,Вспомогательная!$L$2:$M$1000,(COLUMN(Вспомогательная!$M$1)+1-COLUMN(Вспомогательная!$L$1)),FALSE),F255))","v":""},{"$f":"IF($C255=0,\"\",VLOOKUP(P255,Вспомогательная!$G$2:$I$1000,(COLUMN(Вспомогательная!$H$1)-COLUMN(Вспомогательная!$G$1)+1),FALSE))","v":""}]
[{"$f":"IF(OR(O256=\"Отгружено\",O256=\"Отказ\"),MAX($A$213:A255)+1,\"\")","v":""},"",null,null,null,null,null,null,{"$f":"IF($C256=0,\"\",VLOOKUP(F256,Вспомогательная!$G$2:$I$1000,(COLUMN(Вспомогательная!$H$1)-COLUMN(Вспомогательная!$G$1)+1),FALSE))","v":""},{"$f":"IF($C256=0,\"\",VLOOKUP(I256,Вспомогательная!$A$2:$B$1000,(COLUMN(Вспомогательная!$B$1)-COLUMN(Вспомогательная!$A$1)+1),FALSE))","v":""},null,null,null,null,null,{"$f":"IF(F256=0,\"\",IFERROR(VLOOKUP(F256,Вспомогательная!$L$2:$M$1000,(COLUMN(Вспомогательная!$M$1)+1-COLUMN(Вспомогательная!$L$1)),FALSE),F256))","v":""},{"$f":"IF($C256=0,\"\",VLOOKUP(P256,Вспомогательная!$G$2:$I$1000,(COLUMN(Вспомогательная!$H$1)-COLUMN(Вспомогательная!$G$1)+1),FALSE))","v":""}]
[{"$f":"IF(OR(O257=\"Отгружено\",O257=\"Отказ\"),MAX($A$213:A256)+1,\"\")","v":""},"",null,null,null,null,null,null,{"$f":"IF($C257=0,\"\",VLOOKUP(F257,Вспомогательная!$G$2:$I$1000,(COLUMN(Вспомогательная!$H$1)-COLUMN(Вспомогательная!$G$1)+1),FALSE))","v":""},{"$f":"IF($C257=0,\"\",VLOOKUP(I257,Вспомогательная!$A$2:$B$1000,(COLUMN(Вспомогательная!$B$1)-COLUMN(Вспомогательная!$A$1)+1),FALSE))","v":""},null,null,null,null,null,{"$f":"IF(F257=0,\"\",IFERROR(VLOOKUP(F257,Вспомогательная!$L$2:$M$1000,(COLUMN(Вспомогательная!$M$1)+1-COLUMN(Вспомогательная!$L$1)),FALSE),F257))","v":""},{"$f":"IF($C257=0,\"\",VLOOKUP(P257,Вспомогательная!$G$2:$I$1000,(COLUMN(Вспомогательная!$H$1)-COLUMN(Вспомогательная!$G$1)+1),FALSE))","v":""}]
[{"$f":"IF(OR(O258=\"Отгружено\",O258=\"Отказ\"),MAX($A$213:A257)+1,\"\")","v":""},"",null,null,null,null,null,null,{"$f":"IF($C258=0,\"\",VLOOKUP(F258,Вспомогательная!$G$2:$I$1000,(COLUMN(Вспомогательная!$H$1)-COLUMN(Вспомогательная!$G$1)+1),FALSE))","v":""},{"$f":"IF($C258=0,\"\",VLOOKUP(I258,Вспомогательная!$A$2:$B$1000,(COLUMN(Вспомогательная!$B$1)-COLUMN(Вспомогательная!$A$1)+1),FALSE))","v":""},null,null,null,null,null,{"$f":"IF(F258=0,\"\",IFERROR(VLOOKUP(F258,Вспомогательная!$L$2:$M$1000,(COLUMN(Вспомогательная!$M$1)+1-COLUMN(Вспомогательная!$L$1)),FALSE),F258))","v":""},{"$f":"IF($C258=0,\"\",VLOOKUP(P258,Вспомогательная!$G$2:$I$1000,(COLUMN(Вспомогательная!$H$1)-COLUMN(Вспомогательная!$G$1)+1),FALSE))","v":""}]
[{"$f":"IF(OR(O259=\"Отгружено\",O259=\"Отказ\"),MAX($A$213:A258)+1,\"\")","v":""},"",null,null,null,null,null,null,{"$f":"IF($C259=0,\"\",VLOOKUP(F259,Вспомогательная!$G$2:$I$1000,(COLUMN(Вспомогательная!$H$1)-COLUMN(Вспомогательная!$G$1)+1),FALSE))","v":""},{"$f":"IF($C259=0,\"\",VLOOKUP(I259,Вспомогательная!$A$2:$B$1000,(COLUMN(Вспомогательная!$B$1)-COLUMN(Вспомогательная!$A$1)+1),FALSE))","v":""},null,null,null,null,null,{"$f":"IF(F259=0,\"\",IFERROR(VLOOKUP(F259,Вспомогательная!$L$2:$M$1000,(COLUMN(Вспомогательная!$M$1)+1-COLUMN(Вспомогательная!$L$1)),FALSE),F259))","v":""},{"$f":"IF($C259=0,\"\",VLOOKUP(P259,Вспомогательная!$G$2:$I$1000,(COLUMN(Вспомогательная!$H$1)-COLUMN(Вспомогательная!$G$1)+1),FALSE))","v":""}]
[{"$f":"IF(OR(O260=\"Отгружено\",O260=\"Отказ\"),MAX($A$213:A259)+1,\"\")","v":""},"",null,null,null,null,null,null,{"$f":"IF($C260=0,\"\",VLOOKUP(F260,Вспомогательная!$G$2:$I$1000,(COLUMN(Вспомогательная!$H$1)-COLUMN(Вспомогательная!$G$1)+1),FALSE))","v":""},{"$f":"IF($C260=0,\"\",VLOOKUP(I260,Вспомогательная!$A$2:$B$1000,(COLUMN(Вспомогательная!$B$1)-COLUMN(Вспомогательная!$A$1)+1),FALSE))","v":""},null,null,null,null,null,{"$f":"IF(F260=0,\"\",IFERROR(VLOOKUP(F260,Вспомогательная!$L$2:$M$1000,(COLUMN(Вспомогательная!$M$1)+1-COLUMN(Вспомогательная!$L$1)),FALSE),F260))","v":""},{"$f":"IF($C260=0,\"\",VLOOKUP(P260,Вспомогательная!$G$2:$I$1000,(COLUMN(Вспомогательная!$H$1)-COLUMN(Вспомогательная!$G$1)+1),FALSE))","v":""}]
[{"$f":"IF(OR(O261=\"Отгружено\",O261=\"Отказ\"),MAX($A$213:A260)+1,\"\")","v":""},"",null,null,null,null,null,null,{"$f":"IF($C261=0,\"\",VLOOKUP(F261,Вспомогательная!$G$2:$I$1000,(COLUMN(Вспомогательная!$H$1)-COLUMN(Вспомогательная!$G$1)+1),FALSE))","v":""},{"$f":"IF($C261=0,\"\",VLOOKUP(I261,Вспомогательная!$A$2:$B$1000,(COLUMN(Вспомогательная!$B$1)-COLUMN(Вспомогательная!$A$1)+1),FALSE))","v":""},null,null,null,null,null,{"$f":"IF(F261=0,\"\",IFERROR(VLOOKUP(F261,Вспомогательная!$L$2:$M$1000,(COLUMN(Вспомогательная!$M$1)+1-COLUMN(Вспомогательная!$L$1)),FALSE),F261))","v":""},{"$f":"IF($C261=0,\"\",VLOOKUP(P261,Вспомогательная!$G$2:$I$1000,(COLUMN(Вспомогательная!$H$1)-COLUMN(Вспомогательная!$G$1)+1),FALSE))","v":""}]
[{"$f":"IF(OR(O262=\"Отгружено\",O262=\"Отказ\"),MAX($A$213:A261)+1,\"\")","v":""},"",null,null,null,null,null,null,{"$f":"IF($C262=0,\"\",VLOOKUP(F262,Вспомогательная!$G$2:$I$1000,(COLUMN(Вспомогательная!$H$1)-COLUMN(Вспомогательная!$G$1)+1),FALSE))","v":""},{"$f":"IF($C262=0,\"\",VLOOKUP(I262,Вспомогательная!$A$2:$B$1000,(COLUMN(Вспомогательная!$B$1)-COLUMN(Вспомогательная!$A$1)+1),FALSE))","v":""},null,null,null,null,null,{"$f":"IF(F262=0,\"\",IFERROR(VLOOKUP(F262,Вспомогательная!$L$2:$M$1000,(COLUMN(Вспомогательная!$M$1)+1-COLUMN(Вспомогательная!$L$1)),FALSE),F262))","v":""},{"$f":"IF($C262=0,\"\",VLOOKUP(P262,Вспомогательная!$G$2:$I$1000,(COLUMN(Вспомогательная!$H$1)-COLUMN(Вспомогательная!$G$1)+1),FALSE))","v":""}]
[{"$f":"IF(OR(O263=\"Отгружено\",O263=\"Отказ\"),MAX($A$213:A262)+1,\"\")","v":""},"",null,null,null,null,null,null,{"$f":"IF($C263=0,\"\",VLOOKUP(F263,Вспомогательная!$G$2:$I$1000,(COLUMN(Вспомогательная!$H$1)-COLUMN(Вспомогательная!$G$1)+1),FALSE))","v":""},{"$f":"IF($C263=0,\"\",VLOOKUP(I263,Вспомогательная!$A$2:$B$1000,(COLUMN(Вспомогательная!$B$1)-COLUMN(Вспомогательная!$A$1)+1),FALSE))","v":""},null,null,null,null,null,{"$f":"IF(F263=0,\"\",IFERROR(VLOOKUP(F263,Вспомогательная!$L$2:$M$1000,(COLUMN(Вспомогательная!$M$1)+1-COLUMN(Вспомогательная!$L$1)),FALSE),F263))","v":""},{"$f":"IF($C263=0,\"\",VLOOKUP(P263,Вспомогательная!$G$2:$I$1000,(COLUMN(Вспомогательная!$H$1)-COLUMN(Вспомогательная!$G$1)+1),FALSE))","v":""}]
[{"$f":"IF(OR(O264=\"Отгружено\",O264=\"Отказ\"),MAX($A$213:A263)+1,\"\")","v":""},"",null,null,null,null,null,null,{"$f":"IF($C264=0,\"\",VLOOKUP(F264,Вспомогательная!$G$2:$I$1000,(COLUMN(Вспомогательная!$H$1)-COLUMN(Вспомогательная!$G$1)+1),FALSE))","v":""},{"$f":"IF($C264=0,\"\",VLOOKUP(I264,Вспомогательная!$A$2:$B$1000,(COLUMN(Вспомогательная!$B$1)-COLUMN(Вспомогательная!$A$1)+1),FALSE))","v":""},null,null,null,null,null,{"$f":"IF(F264=0,\"\",IFERROR(VLOOKUP(F264,Вспомогательная!$L$2:$M$1000,(COLUMN(Вспомогательная!$M$1)+1-COLUMN(Вспомогательная!$L$1)),FALSE),F264))","v":""},{"$f":"IF($C264=0,\"\",VLOOKUP(P264,Вспомогательная!$G$2:$I$1000,(COLUMN(Вспомогательная!$H$1)-COLUMN(Вспомогательная!$G$1)+1),FALSE))","v":""}]

{"sheet":"Вспомогательная","index":1,"n_rows":243,"n_cols":13,"rows_kept":243,"cut":false,"hidden":false,"merged":[[0,11,0,12]]}
[null,null,null,null,null,null,"Инфо по ТТ"]
["Куратор","подразделение",null,"Статус по WT",null,null,"Название","Куратор",null,"Приоритет",null,"Осн.склад","Транз.склад"]
["куратор 1","Подразд.1",null,"Отгружено",null,1,"Склад1","куратор 1",null,"Высокий",null,"Склад55","Склад47"]
["куратор 2","Подразд.1",null,"Отказ",null,2,"Склад2","куратор 2",null,"Средний",null,"Склад74","Склад47"]
["куратор 3","Подразд.1",null,"Подвис",null,3,"Склад3","куратор 2",null,null,null,"Склад62","Склад47"]
["куратор 4","Подразд.2",null,"В процессе",null,4,"Склад4","куратор 1",null,null,null,"Склад114","Склад47"]
["куратор 5","Подразд.1",null,"Без ВС",null,5,"Склад5","куратор 3",null,null,null,"Склад127","Склад47"]
["куратор 6","Подразд.2",null,null,null,6,"Склад6","куратор 1",null,null,null,"Склад115","Склад1"]
["куратор 7","Подразд.1",null,null,null,7,"Склад7","куратор 3",null,null,null,"Склад152","Склад1"]
["куратор 8","Подразд.2",null,null,null,8,"Склад8","куратор 1",null,null,null,"Склад41","Склад43"]
["куратор 9","Подразд.2",null,null,null,9,"Склад9","куратор 2",null,null,null,"Склад157","Склад117"]
["куратор 10","Подразд.2",null,null,null,10,"Склад10","куратор 4",null,null,null,"Склад42","Склад46"]
["куратор 11","Подразд.2",null,null,null,11,"Склад11","куратор 1",null,null,null,"Склад242","Склад46"]
["куратор 12","Подразд.2",null,null,null,12,"Склад12","куратор 1",null,null,null,"Склад184","Склад46"]
["куратор 13","Подразд.1",null,null,null,13,"Склад13","куратор 5",null,null,null,"Склад196","Склад46"]
["куратор 14","Подразд.1",null,null,null,14,"Склад14","куратор 4",null,null,null,"Склад156","Склад20"]
["куратор 15","Подразд.2",null,null,null,15,"Склад15","куратор 2",null,null,null,"Склад91","Склад146"]
["куратор 16","Подразд.2",null,null,null,16,"Склад16","куратор 5",null,null,null,"Склад23","Склад133"]
["куратор 17","Подразд.3",null,null,null,17,"Склад17","куратор 3",null,null,null,"Склад136","Склад133"]
["куратор 18","Подразд.3",null,null,null,18,"Склад18","куратор 1",null,null,null,"Склад119","Склад176"]
["куратор 19","Подразд.2",null,null,null,19,"Склад19","куратор 2",null,null,null,"Склад85","Склад176"]
["куратор 20","Подразд.3",null,null,null,20,"Склад20","куратор 6",null,null,null,"Склад89","Склад176"]
["куратор 21","Подразд.3",null,null,null,21,"Склад21","куратор 3",null,null,null,"Склад234","Склад78"]
["куратор 22","Подразд.3",null,null,null,22,"Склад22","куратор 6",null,null,null,"Склад227","Склад7"]
["куратор 23","Подразд.1",null,null,null,23,"Склад23","куратор 5",null,null,null,"Склад86","Склад7"]
["куратор 24","Подразд.1",null,null,null,24,"Склад24","куратор 3",null,null,null,"Склад173","Склад125"]
["куратор 25","Подразд.1",null,null,null,25,"Склад25","куратор 6",null,null,null,"Склад17","Склад125"]
["куратор 26","Подразд.2",null,null,null,26,"Склад26","куратор 4",null,null,null,"Склад71","Склад125"]
["куратор 27","Подразд.2",null,null,null,27,"Склад27","куратор 5",null,null,null,"Склад179","Склад69"]
["куратор 28","Подразд.2",null,null,null,28,"Склад28","куратор 3",null,null,null,"Склад180","Склад69"]
["куратор 29","Подразд.4",null,null,null,29,"Склад29","куратор 4",null,null,null,"Склад90","Склад158"]
["куратор 30","Подразд.4",null,null,null,30,"Склад30","куратор 5",null,null,null,"Склад94","Склад73"]
["куратор 31","Подразд.1",null,null,null,31,"Склад31","куратор 5",null,null,null,"Склад142","Склад73"]
[null,null,null,null,null,32,"Склад32","куратор 3",null,null,null,"Склад150","Склад73"]
[null,null,null,null,null,33,"Склад33","куратор 2",null,null,null,"Склад126","Склад39"]
[null,null,null,null,null,34,"Склад34","куратор 6"]
[null,null,null,null,null,35,"Склад35","куратор 4"]
[null,null,null,null,null,36,"Склад36","куратор 2"]
[null,null,null,null,null,37,"Склад37","куратор 5"]
[null,null,null,null,null,38,"Склад38","куратор 5"]
[null,null,null,null,null,39,"Склад39","куратор 3"]
[null,null,null,null,null,40,"Склад40","куратор 1"]
[null,null,null,null,null,41,"Склад41","куратор 4"]
[null,null,null,null,null,42,"Склад42","куратор 6"]
[null,null,null,null,null,43,"Склад43","куратор 1"]
[null,null,null,null,null,45,"Склад44","куратор 2"]
[null,null,null,null,null,46,"Склад45","куратор 6"]
[null,null,null,null,null,47,"Склад46","куратор 6"]
[null,null,null,null,null,48,"Склад47","куратор 4"]
[null,null,null,null,null,49,"Склад48","куратор 3"]
[null,null,null,null,null,50,"Склад49","куратор 3"]
[null,null,null,null,null,51,"Склад50","куратор 3"]
[null,null,null,null,null,52,"Склад51","куратор 2"]
[null,null,null,null,null,53,"Склад52","куратор 4"]
[null,null,null,null,null,54,"Склад53","куратор 5"]
[null,null,null,null,null,55,"Склад54","куратор 6"]
[null,null,null,null,null,56,"Склад55","куратор 4"]
[null,null,null,null,null,57,"Склад56","куратор 4"]
[null,null,null,null,null,58,"Склад57","куратор 3"]
[null,null,null,null,null,59,"Склад58","куратор 2"]
[null,null,null,null,null,60,"Склад59","куратор 2"]
[null,null,null,null,null,61,"Склад60","куратор 2"]
[null,null,null,null,null,62,"Склад61","куратор 5"]
[null,null,null,null,null,63,"Склад62","куратор 4"]
[null,null,null,null,null,64,"Склад63","куратор 4"]
[null,null,null,null,null,65,"Склад64","куратор 6"]
[null,null,null,null,null,66,"Склад65","куратор 4"]
[null,null,null,null,null,67,"Склад66","куратор 2"]
[null,null,null,null,null,68,"Склад67","куратор 3"]
[null,null,null,null,null,69,"Склад68","куратор 2"]
[null,null,null,null,null,70,"Склад69","куратор 2"]
[null,null,null,null,null,71,"Склад70","куратор 2"]
[null,null,null,null,null,72,"Склад71","куратор 3"]
[null,null,null,null,null,73,"Склад72","куратор 1"]
[null,null,null,null,null,74,"Склад73","куратор 1"]
[null,null,null,null,null,75,"Склад74","куратор 4"]
[null,null,null,null,null,76,"Склад75","куратор 2"]
[null,null,null,null,null,78,"Склад76","куратор 2"]
[null,null,null,null,null,79,"Склад77","куратор 1"]
[null,null,null,null,null,80,"Склад78","куратор 2"]
[null,null,null,null,null,81,"Склад79","куратор 1"]
[null,null,null,null,null,82,"Склад80","куратор 6"]
[null,null,null,null,null,83,"Склад81","куратор 2"]
[null,null,null,null,null,84,"Склад82","куратор 6"]
[null,null,null,null,null,85,"Склад83","куратор 1"]
[null,null,null,null,null,86,"Склад84","куратор 4"]
[null,null,null,null,null,87,"Склад85","куратор 5"]
[null,null,null,null,null,88,"Склад86","куратор 7"]
[null,null,null,null,null,89,"Склад87","куратор 7"]
[null,null,null,null,null,90,"Склад88","куратор 1"]
[null,null,null,null,null,91,"Склад89","куратор 5"]
[null,null,null,null,null,92,"Склад90","куратор 1"]
[null,null,null,null,null,93,"Склад91","куратор 5"]
[null,null,null,null,null,94,"Склад92","куратор 6"]
[null,null,null,null,null,95,"Склад93","куратор 1"]
[null,null,null,null,null,96,"Склад94","куратор 8"]
[null,null,null,null,null,97,"Склад95","куратор 4"]
[null,null,null,null,null,98,"Склад96","куратор 7"]
[null,null,null,null,null,99,"Склад97","куратор 2"]
[null,null,null,null,null,100,"Склад98","куратор 8"]
[null,null,null,null,null,101,"Склад99","куратор 8"]
[null,null,null,null,null,102,"Склад100","куратор 8"]
[null,null,null,null,null,103,"Склад101","куратор 2"]
[null,null,null,null,null,104,"Склад102","куратор 8"]
[null,null,null,null,null,105,"Склад103","куратор 8"]
[null,null,null,null,null,106,"Склад104","куратор 6"]
[null,null,null,null,null,107,"Склад105","куратор 1"]
[null,null,null,null,null,108,"Склад106","куратор 2"]
[null,null,null,null,null,109,"Склад107","куратор 5"]
[null,null,null,null,null,111,"Склад108","куратор 1"]
[null,null,null,null,null,112,"Склад109","куратор 8"]
[null,null,null,null,null,113,"Склад110","куратор 8"]
[null,null,null,null,null,114,"Склад111","куратор 8"]
[null,null,null,null,null,115,"Склад112","куратор 8"]
[null,null,null,null,null,116,"Склад113","куратор 8"]
[null,null,null,null,null,117,"Склад114","куратор 4"]
[null,null,null,null,null,118,"Склад115","куратор 4"]
[null,null,null,null,null,119,"Склад116","куратор 2"]
[null,null,null,null,null,120,"Склад117","куратор 4"]
[null,null,null,null,null,121,"Склад118","куратор 8"]
[null,null,null,null,null,122,"Склад119","куратор 5"]
[null,null,null,null,null,123,"Склад120","куратор 8"]
[null,null,null,null,null,124,"Склад121","куратор 1"]
[null,null,null,null,null,125,"Склад122","куратор 8"]
[null,null,null,null,null,126,"Склад123","куратор 2"]
[null,null,null,null,null,127,"Склад124","куратор 2"]
[null,null,null,null,null,128,"Склад125","куратор 7"]
[null,null,null,null,null,129,"Склад126","куратор 8"]
[null,null,null,null,null,130,"Склад127","куратор 4"]
[null,null,null,null,null,131,"Склад128","куратор 8"]
[null,null,null,null,null,132,"Склад129","куратор 8"]
[null,null,null,null,null,133,"Склад130","куратор 2"]
[null,null,null,null,null,134,"Склад131","куратор 10"]
[null,null,null,null,null,135,"Склад132","куратор 10"]
[null,null,null,null,null,136,"Склад133","куратор 5"]
[null,null,null,null,null,137,"Склад134","куратор 6"]
[null,null,null,null,null,138,"Склад135","куратор 10"]
[null,null,null,null,null,139,"Склад136","куратор 5"]
[null,null,null,null,null,140,"Склад137","куратор 13"]
[null,null,null,null,null,141,"Склад138","куратор 12"]
[null,null,null,null,null,142,"Склад139","куратор 10"]
[null,null,null,null,null,143,"Склад140","куратор 2"]
[null,null,null,null,null,144,"Склад141","куратор 10"]
[null,null,null,null,null,145,"Склад142","куратор 8"]
[null,null,null,null,null,146,"Склад143","куратор 8"]
[null,null,null,null,null,147,"Склад144",{"$error":"#N/A"}]
[null,null,null,null,null,148,"Склад145","куратор 2"]
[null,null,null,null,null,149,"Склад146","куратор 5"]
[null,null,null,null,null,150,"Склад147","куратор 12"]
[null,null,null,null,null,151,"Склад148","куратор 8"]
[null,null,null,null,null,152,"Склад149","куратор 2"]
[null,null,null,null,null,153,"Склад150","куратор 8"]
[null,null,null,null,null,154,"Склад151","куратор 4"]
[null,null,null,null,null,155,"Склад152","куратор 4"]
[null,null,null,null,null,156,"Склад153","куратор 11"]
[null,null,null,null,null,157,"Склад154","куратор 8"]
[null,null,null,null,null,158,"Склад155","куратор 10"]
[null,null,null,null,null,159,"Склад156","куратор 6"]
[null,null,null,null,null,160,"Склад157","куратор 4"]
[null,null,null,null,null,161,"Склад158","куратор 13"]
[null,null,null,null,null,162,"Склад159","куратор 15"]
[null,null,null,null,null,163,"Склад160",{"$error":"#N/A"}]
[null,null,null,null,null,164,"Склад161","куратор 13"]
[null,null,null,null,null,165,"Склад162",{"$error":"#N/A"}]
[null,null,null,null,null,166,"Склад163",{"$error":"#N/A"}]
[null,null,null,null,null,167,"Склад164","куратор 6"]
[null,null,null,null,null,168,"Склад165",{"$error":"#N/A"}]
[null,null,null,null,null,169,"Склад166","куратор 7"]
[null,null,null,null,null,170,"Склад167","куратор 17"]
[null,null,null,null,null,171,"Склад168","куратор 4"]
[null,null,null,null,null,172,"Склад169","куратор 10"]
[null,null,null,null,null,173,"Склад170","куратор 10"]
[null,null,null,null,null,174,"Склад171","куратор 10"]
[null,null,null,null,null,175,"Склад172","куратор 15"]
[null,null,null,null,null,176,"Склад173","куратор 7"]
[null,null,null,null,null,177,"Склад174","куратор 17"]
[null,null,null,null,null,178,"Склад175","куратор 14"]
[null,null,null,null,null,179,"Склад176","куратор 5"]
[null,null,null,null,null,180,"Склад177","куратор 2"]
[null,null,null,null,null,181,"Склад178","куратор 18"]
[null,null,null,null,null,182,"Склад179","куратор 19"]
[null,null,null,null,null,183,"Склад180","куратор 19"]
[null,null,null,null,null,184,"Склад181","куратор 13"]
[null,null,null,null,null,185,"Склад182","куратор 4"]
[null,null,null,null,null,186,"Склад183","куратор 4"]
[null,null,null,null,null,187,"Склад184","куратор 6"]
[null,null,null,null,null,188,"Склад185","куратор 20"]
[null,null,null,null,null,189,"Склад186","куратор 22"]
[null,null,null,null,null,190,"Склад187","куратор 19"]
[null,null,null,null,null,191,"Склад188","куратор 19"]
[null,null,null,null,null,192,"Склад189","куратор 4"]
[null,null,null,null,null,193,"Склад190","куратор 21"]
[null,null,null,null,null,194,"Склад191","куратор 20"]
[null,null,null,null,null,195,"Склад192","куратор 16"]
[null,null,null,null,null,196,"Склад193","куратор 2"]
[null,null,null,null,null,197,"Склад194","куратор 2"]
[null,null,null,null,null,198,"Склад195","куратор 5"]
[null,null,null,null,null,199,"Склад196","куратор 6"]
[null,null,null,null,null,200,"Склад197","куратор 4"]
[null,null,null,null,null,201,"Склад198","куратор 20"]
[null,null,null,null,null,202,"Склад199","куратор 21"]
[null,null,null,null,null,203,"Склад200","куратор 5"]
[null,null,null,null,null,204,"Склад201","куратор 20"]
[null,null,null,null,null,205,"Склад202","куратор 4"]
[null,null,null,null,null,206,"Склад203","куратор 23"]
[null,null,null,null,null,207,"Склад204","куратор 6"]
[null,null,null,null,null,208,"Склад205","куратор 22"]
[null,null,null,null,null,209,"Склад206","куратор 4"]
[null,null,null,null,null,210,"Склад207","куратор 27"]
[null,null,null,null,null,211,"Склад208","куратор 5"]
[null,null,null,null,null,212,"Склад209","куратор 22"]
[null,null,null,null,null,213,"Склад210","куратор 21"]
[null,null,null,null,null,214,"Склад211","куратор 26"]
[null,null,null,null,null,null,"Склад212","куратор 6"]
[null,null,null,null,null,null,"Склад213","куратор 6"]
[null,null,null,null,null,null,"Склад214","куратор 6"]
[null,null,null,null,null,null,"Склад215","куратор 21"]
[null,null,null,null,null,null,"Склад216","куратор 25"]
[null,null,null,null,null,null,"Склад217","куратор 20"]
[null,null,null,null,null,null,"Склад218","куратор 5"]
[null,null,null,null,null,null,"Склад219","куратор 26"]
[null,null,null,null,null,null,"Склад220","куратор 16"]
[null,null,null,null,null,null,"Склад221","куратор 29"]
[null,null,null,null,null,null,"Склад222","куратор 22"]
[null,null,null,null,null,null,"Склад223","куратор 4"]
[null,null,null,null,null,null,"Склад224","куратор 29"]
[null,null,null,null,null,null,"Склад225","куратор 4"]
[null,null,null,null,null,null,"Склад226","куратор 26"]
[null,null,null,null,null,null,"Склад227","куратор 25"]
[null,null,null,null,null,null,"Склад228","куратор 22"]
[null,null,null,null,null,null,"Склад229","куратор 14"]
[null,null,null,null,null,null,"Склад230","куратор 27"]
[null,null,null,null,null,null,"Склад231","куратор 23"]
[null,null,null,null,null,null,"Склад232","куратор 29"]
[null,null,null,null,null,null,"Склад233","куратор 25"]
[null,null,null,null,null,null,"Склад234","куратор 24"]
[null,null,null,null,null,null,"Склад235","куратор 6"]
[null,null,null,null,null,null,"Склад236","куратор 16"]
[null,null,null,null,null,null,"Склад237","куратор 6"]
[null,null,null,null,null,null,"Склад238","куратор 21"]
[null,null,null,null,null,null,"Склад239","куратор 5"]
[null,null,null,null,null,null,"Склад240","куратор 26"]
[null,null,null,null,null,null,"Склад241","куратор 22"]